Cogmind - Beta 10.1 @@@ ROGUE MODE // 2020.10.02 @ 01:09:48 Player: 0x1RifTreadsPC Result: Establishing 0b11! Performance ------------- Evolutions (9) 4500 Regions Visited (34) 6800 Robots Destroyed (428) 2140 Value Destroyed (24469) 24469 Prototype IDs (96) 1920 Alien Tech Used (11) 2200 Bonus (51999) 51999 TOTAL SCORE: 94028 Bonus ------- High Alert Combat Kills 3667 Follower Combat Kills 2667 Entered Garrisons 1200 Used RIF Installer 3000 Network Hubs Disabled 200 Built Enhanced Grunts 300 Found Hidden Lab 3000 Hacked Protovariant 500 Destroyed MAIN.C Guards 500 Met MAIN.C 5000 Destroyed MAIN.C Shell 5000 Destroyed MAIN.C 10000 Met Architect 300 Destroyed A8 300 Destroyed A6 400 Destroyed A5 500 Destroyed A4 700 Destroyed A3 800 Destroyed A2 1000 Destroyed Architect 15000 Win 3000 Friendly Fire -5035 Cogmind --------- Core Integrity 993/1600 Matter 425/425 Energy 1685/1700 System Corruption 2% Temperature Cool (12) Movement Treading (172) Ox1 Location 0b11 Command Parts ------- > --- POWER (2) -------- Vortex Chain Reactor > --- PROPULSION (4) --- Experimental Biometal Heavy Treads Advanced Heavy Siege Treads > --- UTILITY (16) ----- Desublimator Large Storage Unit Large Storage Unit High-capacity Storage Unit High-capacity Storage Unit Experimental Energy Well Experimental Optical Array Experimental Targeting Computer Experimental Targeting Computer Advanced Armor Integrity Analyzer Experimental Weapon Cycler Experimental Phase Shifter Advanced Powered Armor AEGIS Remote Shield Stealth Drone Bay (2/2) > --- WEAPON (4) ------- Potential Cannon Sigix Broadsword > --- INVENTORY (32) --- Zero-point Reactor Zero-point Reactor Biometal Heavy Treads Experimental Coolant Injector Experimental Energy Well (1000) Experimental Matter Compressor (500) Dimensional Manipulator Precision Energy Filter Precision Energy Filter Precision Energy Filter Experimental Weapon Cycler Experimental Phase Shifter Improved Utility Shielding Advanced Powered Armor Heavy Regenerative Plating AEGIS Remote Shield Long-range Tractor Beam Integrity Redistributor Terrabomb Sigix Quantum Sheargun Potential Cannon Hypervelocity Multirail Graviton Cannon Sigix Terminator Peak State ------------ > --- POWER ------------ Vortex Chain Reactor > --- PROPULSION ------- Experimental Biometal Heavy Treads Advanced Heavy Siege Treads > --- UTILITY ---------- Desublimator Large Storage Unit Large Storage Unit High-capacity Storage Unit High-capacity Storage Unit Experimental Energy Well Experimental Optical Array Experimental Targeting Computer Experimental Targeting Computer Advanced Armor Integrity Analyzer Experimental Weapon Cycler Experimental Phase Shifter Advanced Powered Armor AEGIS Remote Shield Stealth Drone Bay > --- WEAPON ----------- Potential Cannon Sigix Broadsword > --- INVENTORY -------- Zero-point Reactor Zero-point Reactor Biometal Heavy Treads Experimental Coolant Injector Experimental Energy Well Experimental Matter Compressor Dimensional Manipulator Precision Energy Filter Precision Energy Filter Precision Energy Filter Experimental Weapon Cycler Experimental Phase Shifter Improved Utility Shielding Advanced Powered Armor Heavy Regenerative Plating AEGIS Remote Shield Long-range Tractor Beam High-powered Transdimensional Reconstructor Integrity Redistributor Terrabomb Sigix Quantum Sheargun Potential Cannon Hypervelocity Multirail Graviton Cannon Sigix Terminator [Rating: 240] Favorites ----------- Power Zero-point Reactor Engine Improved Ion Engine Power Core Micro Fission Core Reactor Zero-point Reactor Propulsion Light Treads Treads Light Treads Leg Aluminum Leg Wheel Wheel Flight Unit Improved Flight Unit Utility High-capacity Storage Unit Device Coolant Injector Storage High-capacity Storage Unit Processor Experimental Terrain Scan Processor Hackware Relay Coupler [NC] Protection Advanced Powered Armor Artifact Matter Drive Weapon Sigix Broadsword Energy Gun Tesla Rifle Energy Cannon Enhanced Nova Cannon Ballistic Gun Improved Assault Rifle Ballistic Cannon Heavy Hardcell Cannon Launcher Fusion Bomb Launcher Special Weapon Guided Remote Datajack Impact Weapon Flail Slashing Weapon Sigix Broadsword Special Melee Weapon Advanced Datajack Build | -11 -10 -10 -9 -9 -8 -8 -8 -8 -7 -7 -7 -7 -7 -7 -6 -6 -6 -6 -6 -5 -5 -5 -5 -4 -4 -4 -3 -3 -2 -2 -2 -1 -1 -1 ------- Run | Scr Mat Min Mat Sto Mat Gar Mat Gar Fac Was Fac Gar Fac Gar Fac Ext Cet Arc Hub Fac Gar Fac Gar Fac Arm Lab Res Tes Res Qua Sec Acc Com Ac0 Slots Evolved 18 | . . . 2 . 2 . . . 2 . . . . . 2 . . . . 2 . . . 2 . . 2 . 2 . . 2 . . Power 1 | . . . . . . . . . . . . . . . . . . . . . . . . . . . . . 1 . . . . . Propulsion 2 | . . . . . 1 . . . . . . . . . . . . . . . . . . 1 . . . . . . . . . . Utility 13 | . . . 1 . 1 . . . 2 . . . . . 2 . . . . 2 . . . 1 . . 2 . 1 . . 1 . . Weapon 2 | . . . 1 . . . . . . . . . . . . . . . . . . . . . . . . . . . . 1 . . Parts Attached 524 | 9 8 7 4 43 9 10 28 6 2 14 2 . 1 . 5 21 13 6 . 13 13 5 9 15 52 5 11 22 13 19 44 7 68 40 Power 27 | 2 . . . 3 . . 3 . . . 1 . . . . . . . . . 1 . 1 3 2 . . 2 2 2 1 . 4 . Engine 7 | 2 . . . 2 . . 3 . . . . . . . . . . . . . . . . . . . . . . . . . . . Core 9 | . . . . . . . . . . . 1 . . . . . . . . . 1 . 1 2 2 . . . 2 . . . . . Reactor 11 | . . . . 1 . . . . . . . . . . . . . . . . . . . 1 . . . 2 . 2 1 . 4 . Propulsion 65 | 2 3 2 . 10 1 3 5 3 . 1 . . . . . 6 2 1 . 1 . . 3 4 7 1 . 2 . 1 1 . 4 2 Treads 59 | 2 1 1 . 9 1 2 4 3 . 1 . . . . . 6 2 1 . 1 . . 3 4 7 1 . 2 . 1 1 . 4 2 Leg 2 | . . . . . . 1 1 . . . . . . . . . . . . . . . . . . . . . . . . . . . Wheel 3 | . 2 1 . . . . . . . . . . . . . . . . . . . . . . . . . . . . . . . . Hover . | . . . . . . . . . . . . . . . . . . . . . . . . . . . . . . . . . . . Flight 1 | . . . . 1 . . . . . . . . . . . . . . . . . . . . . . . . . . . . . . Utility 218 | 2 3 3 3 7 6 1 4 . 2 3 . . 1 . 5 4 4 2 . 5 5 5 2 5 16 1 8 11 8 9 19 6 48 20 Device 101 | 2 1 2 3 1 2 1 . . 1 1 . . 1 . 1 3 1 . . 1 . 1 2 1 9 . 4 5 2 4 9 3 29 11 Storage 27 | . 1 1 . 1 2 . 1 . 1 . . . . . . 1 . . . 1 . 1 . . 1 . 1 3 1 3 2 . 3 3 Processor 11 | . 1 . . . . . . . . . . . . . . . . . . . . . . . 1 . . . 2 . 2 . 3 2 Hackware 22 | . . . . . . . . . . 1 . . . . 4 . 1 1 . 2 4 . . 3 1 . 1 1 . . 1 2 . . Protection 56 | . . . . 5 2 . 3 . . 1 . . . . . . 2 1 . 1 1 3 . 1 4 1 2 2 3 2 5 1 12 4 Artifact 1 | . . . . . . . . . . . . . . . . . . . . . . . . . . . . . . . . . 1 . Weapon 214 | 3 2 2 1 23 2 6 16 3 . 10 1 . . . . 11 7 3 . 7 7 . 3 3 27 3 3 7 3 7 23 1 12 18 Energy Gun 9 | 1 . . . 1 . . . . . . . . . . . . 1 . . . . . . . 3 . . 1 . 1 . . 1 . Energy Cannon 33 | . . . . 2 . . . . . . . . . . . . . . . . . . . . 1 1 2 1 2 2 10 1 3 8 Ballistic Gun 106 | 2 2 2 1 17 1 3 9 2 . 6 1 . . . . 6 5 2 . 3 6 . 3 3 13 . . 2 . 1 5 . 4 7 Ballistic Cannon 11 | . . . . . . . . . . 1 . . . . . . . . . 1 . . . . 3 . . 1 . . . . 2 3 Launcher 19 | . . . . . 1 3 7 1 . . . . . . . 3 . . . . . . . . 2 . 1 1 . . . . . . Special Weapon 15 | . . . . . . . . . . . . . . . . . . . . 1 . . . . 2 . . 1 1 1 8 . 1 . Impact Weapon 3 | . . . . 3 . . . . . . . . . . . . . . . . . . . . . . . . . . . . . . Slashing Weapon 16 | . . . . . . . . . . 2 . . . . . 2 1 1 . 2 1 . . . 3 2 . . . 2 . . . . Piercing Weapon . | . . . . . . . . . . . . . . . . . . . . . . . . . . . . . . . . . . . Special Melee Weapon 2 | . . . . . . . . . . 1 . . . . . . . . . . . . . . . . . . . . . . 1 . Unidentified Prototypes 46 | . . 1 . 6 . . . . . . 1 . . . . 1 4 . . . . . . . 1 3 2 5 . 1 8 . 9 4 Parts Lost 55 | . . . . 2 . 3 5 2 . . . . . . . 2 . 1 1 1 4 1 3 4 11 . . 4 1 1 2 2 4 1 Power 4 | . . . . . . . 2 . . . . . . . . . . . . . . . . . . . . . 1 . . . 1 . Propulsion 12 | . . . . . . 3 2 1 . . . . . . . 2 . . . . . 1 . 1 1 . . . . . . . . 1 Utility 23 | . . . . 1 . . . . . . . . . . . . . 1 1 . 3 . 2 2 3 . . 3 . 1 1 2 3 . Weapon 16 | . . . . 1 . . 1 1 . . . . . . . . . . . 1 1 . 1 1 7 . . 1 . . 1 . . . Highest Loss Streak 4 | . . . . 1 . 3 2 2 . . . . . . . 1 . 1 1 1 2 1 3 2 3 . . 2 1 1 1 2 4 1 Average Slot Usage (%) 85 | . 100 99 96 99 99 99 88 88 85 91 91 92 92 92 92 89 89 90 92 93 90 90 92 90 86 68 82 85 83 83 81 82 77 77 Engine 1 | . 14 14 11 6 9 9 8 9 7 7 5 . . . . . . . . . . . . . . . . . . . . . . . Core 2 | . . . . . . . . . . . . 7 7 7 6 6 6 6 6 5 5 5 5 5 5 5 4 . 3 5 1 . . . Reactor 2 | . . . . 4 . . . . . . . . . . . . . . . . . . . . . . . 3 2 2 6 7 6 3 Treads 12 | . 25 14 11 21 27 19 25 26 23 22 23 23 23 23 20 17 14 13 13 11 11 8 9 12 11 10 9 9 8 8 8 7 7 7 Device 10 | . 18 13 18 2 7 9 . . 4 10 7 7 7 7 1 9 13 13 12 5 5 5 6 9 12 14 15 18 16 11 9 11 14 18 Storage 19 | . 7 14 11 17 18 18 18 18 19 15 15 15 15 15 13 14 20 20 20 22 23 26 29 26 22 21 18 18 16 19 20 19 19 18 Processor 4 | . 2 . . . . . . . . . . . . . . . . . . . . . . . 2 5 4 4 9 4 8 11 11 15 Hackware 6 | . . . . . . . . . . 3 7 7 7 7 23 13 6 10 13 20 18 18 16 18 12 5 7 9 8 8 7 9 . . Protection 6 | . . . . 12 10 9 8 9 7 7 7 7 7 7 6 6 9 6 6 7 6 5 4 . 3 5 8 6 5 11 8 3 7 5 Ballistic Gun 10 | . 25 28 33 31 26 26 26 25 23 17 23 23 23 23 20 19 15 14 20 15 15 17 16 14 8 . . . . . . . . 1 Slashing Weapon 1 | . . . . . . . . . . . . . . . . . . 4 . . . . . . 1 . 4 4 1 2 4 3 3 3 Naked Turns . | . . . . . . . . . . . . . . . . . . . . . . . . . . . . . . . . . . . Heaviest Build 244 | 11 40 40 55 93 91 91 102 101 106 106 104 103 106 106 107 114 114 107 107 122 121 120 136 135 129 143 154 160 191 215 216 207 244 237 Greatest Support 180 | 40 40 10 10 46 66 66 60 60 60 60 60 60 60 60 60 90 110 110 110 110 110 110 110 160 150 135 120 150 150 150 160 160 180 180 Greatest Overweight (x) 36 | . 3 3 5 2 1 3 2 2 1 2 1 1 1 1 1 2 1 . . 1 1 1 1 1 . 36 1 1 1 1 1 1 16 1 Average Overweight (x) 1 | . . 2 4 1 1 1 1 1 1 1 1 1 1 1 1 1 . . . . 1 . 1 . . 12 1 . . 1 1 1 1 1 Largest Inventory Capacity 36 | 4 12 12 12 20 20 20 20 20 20 20 20 20 20 20 20 20 20 20 20 26 26 30 30 30 30 30 30 30 32 36 36 36 36 36 Average Capacity 27 | 4 8 11 12 16 20 20 20 20 20 20 20 20 20 20 20 20 20 20 20 25 26 28 30 30 30 30 30 28 28 35 36 36 36 32 Most Carried 36 | 4 8 11 12 20 20 20 20 20 20 20 20 20 20 20 19 20 20 20 20 25 26 29 30 30 30 30 29 30 30 36 36 36 36 35 Average Carried 26 | 1 5 9 10 15 19 19 19 19 19 19 20 20 19 19 17 17 18 19 20 20 25 26 29 25 29 29 26 26 25 35 35 32 35 29 Final Capacity 36 | 4 12 12 12 20 20 20 20 20 20 20 20 20 20 20 20 20 20 20 20 26 26 30 30 30 30 30 30 26 32 36 36 36 36 32 Final Carried 36 | 4 8 11 11 20 20 20 20 20 20 20 20 20 20 20 17 19 19 20 20 25 25 29 29 28 30 30 28 25 30 34 36 32 34 28 Class Distribution -------------------- 20% | Scavenger-Mutant 16% | Bothacker-Mutant 14% | Hauler-Tank 12% | Botlord-Mutant 7% | Scavenger-Tank 7% | Botlord-Tank 3% | Mutant 3% | Commander-Tank Dominant Class ---------------- Mutant | -10/Materials Mutant | -10/Mines Mutant | -9/Materials Hauler-Tank | -9/Storage Hauler-Tank | -8/Materials Hauler-Tank | -8/Garrison Hauler-Tank | -8/Materials Hauler-Tank | -8/Garrison Scavenger-Tank | -7/Factory Hauler-Tank | -7/Waste Hauler-Tank | -7/Factory Hauler-Tank | -7/Garrison Hauler-Tank | -7/Factory Bothacker-Tank | -7/Garrison Hacker-Tank | -6/Factory Hacker-Tank | -6/Extension Scavenger-Tank | -6/Cetus Scavenger-Mutant | -6/Archives Scavenger-Tank | -6/Hub_04(d) Scavenger-Tank | -5/Factory Bothacker-Tank | -5/Garrison Botlord-Tank | -5/Factory Botlord-Tank | -5/Garrison Botlord-Tank | -4/Factory Botlord-Mutant | -4/Armory Bothacker-Mutant | -4/Lab Bothacker-Mutant | -3/Research Bothacker-Mutant | -3/Testing Bothacker-Mutant | -2/Research Botlord-Mutant | -2/Quarantine Bothacker-Mutant | -2/Section 7 Bothacker-Assassin | -1/Access Scavenger-Mutant | -1/Command Scavenger-Mutant | -1/Access_0 Resources | -11 -10 -10 -9 -9 -8 -8 -8 -8 -7 -7 -7 -7 -7 -7 -6 -6 -6 -6 -6 -5 -5 -5 -5 -4 -4 -4 -3 -3 -2 -2 -2 -1 -1 -1 ----------- Run | Scr Mat Min Mat Sto Mat Gar Mat Gar Fac Was Fac Gar Fac Gar Fac Ext Cet Arc Hub Fac Gar Fac Gar Fac Arm Lab Res Tes Res Qua Sec Acc Com Ac0 Matter Collected 15036 | 342 49 343 50 1050 341 327 907 263 . 794 . 30 8 70 . 379 210 135 22 220 508 59 772 460 1836 . 317 596 54 339 1292 229 2036 998 Remotely 873 | 117 30 343 . . . . . . . . . . . . . . . . . . . . . . . . 277 106 . . . . . . Salvage Created 25282 | 127 49 59 60 1352 522 542 1556 346 . 1177 . . . 261 100 11 217 340 185 307 947 109 1162 1001 2547 . 518 1492 864 588 2507 422 2944 2970 Parts 1155 | 18 4 5 3 88 26 22 72 22 . 10 . . . 15 4 1 14 23 12 13 41 6 44 55 133 . 18 61 22 30 118 12 108 155 Haulers Intercepted 7 | . . . . 4 . . 2 . . . . . . . . . . . . 1 . . . . . . . . . . . . . . Recyclers Shooed 10 | . . . . 1 . . 1 . . . . . . . . . . . . . . . . 1 . . . . . 3 . . 4 . Parts Field Recycled . | . . . . . . . . . . . . . . . . . . . . . . . . . . . . . . . . . . . Retrieved Matter . | . . . . . . . . . . . . . . . . . . . . . . . . . . . . . . . . . . . Parts Self-Destructed . | . . . . . . . . . . . . . . . . . . . . . . . . . . . . . . . . . . . Prevented . | . . . . . . . . . . . . . . . . . . . . . . . . . . . . . . . . . . . Kills | -11 -10 -10 -9 -9 -8 -8 -8 -8 -7 -7 -7 -7 -7 -7 -6 -6 -6 -6 -6 -5 -5 -5 -5 -4 -4 -4 -3 -3 -2 -2 -2 -1 -1 -1 ------- Run | Scr Mat Min Mat Sto Mat Gar Mat Gar Fac Was Fac Gar Fac Gar Fac Ext Cet Arc Hub Fac Gar Fac Gar Fac Arm Lab Res Tes Res Qua Sec Acc Com Ac0 Combat Hostiles Destroyed 362 | . 3 4 1 27 14 15 26 7 . 5 . . . 6 2 1 5 1 . 4 18 2 25 14 44 . 8 21 10 4 31 4 19 41 Melee 13 | . . . . . . . 1 . . . . . . . . . . . . . . . 2 . 1 . . 3 . . 4 . 2 . Guns 226 | . 3 4 1 27 13 7 18 6 . 3 . . . 6 2 . 5 1 . 3 18 2 23 14 21 . . . . . 14 . 5 30 Cannons 56 | . . . . . . . . . . 2 . . . . . . . . . . . . . . 5 . 2 14 8 3 4 1 8 9 AOE 42 | . . . . . 1 8 7 1 . . . . . . . 1 . . . 1 . . . . 12 . 5 3 . . . . 2 1 Classes Destroyed 24 | 2 1 1 1 8 . . 2 . . 2 . . . 1 . . . . . . 1 . . 1 3 . . . . . 1 . . . Worker 12 | . . . . 1 . . 2 . . . . . . . . . . . 3 . . . . 1 . . 2 . . 1 . . 2 . Builder 2 | . . . . . . . . . . . . . . . . . . . . . . . . 1 . . 1 . . . . . . . Tunneler 4 | 4 . . . . . . . . . . . . . . . . . . . . . . . . . . . . . . . . . . Hauler 7 | . . . . 4 . . 2 . . . . . . . . . . . . 1 . . . . . . . . . . . . . . Recycler 8 | 1 . . . . . . 2 . . . . . . . . . . . . . . . . . . . . 1 . 2 . . 2 . Mechanic 1 | . . . . . . . 1 . . . . . . . . . . . . . . . . . . . . . . . . . . . Operator 16 | . . . . 2 . . 4 . . . . . . . . . . 8 1 . . . . . 1 . . . . . . . . . Drone 1 | . . . . 1 . . . . . . . . . . . . . . . . . . . . . . . . . . . . . . Watcher 9 | . . . . 1 . . . . . . . . . . . . . . . . . . . . 2 . 1 . 1 1 1 1 1 . Swarmer 61 | . 3 3 . 7 5 4 5 . . . . . . 1 . 1 4 . . . 6 . 11 4 3 . . . . . 4 . . . Saboteur 7 | . . . . . . . . . . . . . . . . . . . . . . . . . 7 . . . . . . . . . Grunt 114 | . . . . 9 6 11 14 5 . . . . . 3 . . . . . 4 8 . 11 6 6 . 3 9 6 1 7 4 1 . Brawler 2 | . . . . 1 1 . . . . . . . . . . . . . . . . . . . . . . . . . . . . . Duelist 8 | . . . . 1 1 . 2 . . . . . . . . . . . . . . . . . 4 . . . . . . . . . Protector 1 | . . . . . . . . . . . . . . . . . . . . . . . . . 1 . . . . . . . . . Sentry 45 | . . . 1 9 1 . 4 1 . . . . . . 1 . . 1 . . 2 . 2 4 7 . 3 . . . 7 . 2 . Demolisher 2 | . . . . . . . . . . . . . . . . . . . . . . . . . . . . . . . . . 2 . Specialist 7 | . . . . . . . . . . . . . . . . . . . . . . . . . 5 . . 2 . . . . . . Hunter 15 | . . . . . . . 1 1 . . . . . . . . . . . . 1 . . . 1 . 2 3 4 . 2 . . . Programmer 44 | . . . . . . . . . . . . . . 1 1 . 1 . . . . 2 . . 12 . . 7 . 3 9 . 8 . Behemoth 2 | . . . . . . . . . . . . . . . . . . . . . 1 . 1 . . . . . . . . . . . Compactor 5 | . . . . . . . . . . 5 . . . . . . . . . . . . . . . . . . . . . . . . M Guard 2 | . . . . . . . . . . . . . . . . . . . . . . . . . . . . . . . . . 2 . Enhanced Grunt 29 | . . . . . . . . . . . . . . . . . . . 1 . . . . . . . . . . . . . . 28 Enhanced Hunter 6 | . . . . . . . . . . . . . . . . . . . . . . . . . . . . . . . . . . 6 Combat Programmer 2 | . . . . . . . . . . . . . . . . . . . . . . . . . . . . . . . . . 2 . Executioner 2 | . . . . . . . . . . . . . . . . . . . . . . . . . . . . . . . 2 . . . Assembled 1 | . . 1 . . . . . . . . . . . . . . . . . . . . . . . . . . . . . . . . Thug 1 | . . . . . . . . . . . . . . 1 . . . . . . . . . . . . . . . . . . . . Martyr 2 | . . . . . . . . . . 2 . . . . . . . . . . . . . . . . . . . . . . . . Best Kill Streak 14 | 3 3 3 1 9 4 12 14 3 . 2 . . . 4 1 1 4 3 4 2 6 2 13 8 13 . 10 5 4 3 6 4 4 5 Combat Bots Only 13 | . 3 3 1 8 4 12 6 3 . 2 . . . 4 1 1 4 1 . 2 6 2 13 7 12 . 6 4 4 2 6 4 4 5 Max Kills in Single Turn 5 | 1 1 2 1 2 2 4 3 1 . 1 . . . 2 1 1 1 1 4 1 2 1 2 2 3 . 5 2 1 1 2 1 1 2 Gunslinging 1 | . . 1 . 1 1 . . . . . . . . 1 . . . . . . 1 . 1 1 1 . . . . . . . . . Exploded 4 | . . . . . 1 4 2 1 . . . . . . . 1 . . . 1 . . . . 3 . 4 2 . . . . 1 1 Melee 1 | . . . . . . . 1 . . . . . . . . . . . . . . . 1 . 1 . . 1 . . 1 . 1 . Uniques/NPCs Destroyed 10 | . . . . . . . . . . . . . . . . . 1 . . . . . . . . . . . . . . . 2 7 A7 (-6/Cetus) MAIN.C Shell (-1/Command) MAIN.C (-1/Command) A8 (-1/Access_0) A6 (-1/Access_0) A2 (-1/Access_0) A5 (-1/Access_0) A4 (-1/Access_0) Architect (-1/Access_0) A3 (-1/Access_0) Combat | -11 -10 -10 -9 -9 -8 -8 -8 -8 -7 -7 -7 -7 -7 -7 -6 -6 -6 -6 -6 -5 -5 -5 -5 -4 -4 -4 -3 -3 -2 -2 -2 -1 -1 -1 -------- Run | Scr Mat Min Mat Sto Mat Gar Mat Gar Fac Was Fac Gar Fac Gar Fac Ext Cet Arc Hub Fac Gar Fac Gar Fac Arm Lab Res Tes Res Qua Sec Acc Com Ac0 Damage Taken 33610 | . 165 188 15 1033 357 1064 1581 404 . 47 . 22 . 104 477 230 364 101 523 411 1405 226 1796 1511 4149 . 583 2517 1361 1711 2250 1262 2996 4757 Core 2225 | . 10 47 . 92 38 190 68 35 . . . . . . 86 6 31 . 8 37 117 . 168 83 354 . 22 180 119 63 106 31 51 283 Absorbed by Shields 7317 | . . . 6 163 88 230 . . . . . . . 37 . 99 131 21 34 . . . 116 392 . . . . . . . . 1441 4559 Reduced by Siege Mode 931 | . . . . . . . . . . . . . . . . . . . . 34 54 6 . 114 161 . . 156 24 2 42 29 89 220 Core Remaining (%) 73 | 100 . 77 . 77 . . . 39 . . . . . 100 . . . . 84 . . . 67 . . 62 . 84 . . 54 . . 62 Volleys Fired 1333 | 13 4 15 2 77 32 28 73 12 . 56 . . . 7 7 8 11 5 1 15 35 7 54 33 133 . 22 112 55 61 108 18 115 214 Largest 3 | 2 2 2 3 3 3 3 3 3 . 3 . . . 3 3 3 3 3 3 3 3 3 3 3 3 . 1 1 2 2 1 1 1 2 Hottest 214 | 40 70 40 60 102 69 69 84 81 . 95 . . . 94 94 94 93 103 103 103 103 99 99 101 105 . 100 100 214 214 120 81 200 200 Shots Fired 2311 | 26 8 30 6 230 92 70 187 34 . 159 . . . 21 21 18 29 15 3 36 104 15 158 99 235 . 22 112 55 63 106 18 117 222 Gun 1646 | 26 8 30 6 229 90 63 170 33 . 122 . . . 21 21 15 27 15 3 35 104 15 158 99 187 . . . . 9 27 . 50 83 Cannon 592 | . . . . 1 . . . . . 37 . . . . . . . . . . . . . . 27 . 19 107 54 54 72 16 66 139 Launcher 54 | . . . . . 2 7 17 1 . . . . . . . 3 2 . . . . . . . 15 . 3 4 . . . . . . Special 19 | . . . . . . . . . . . . . . . . . . . . 1 . . . . 6 . . 1 1 . 7 2 1 . Kinetic 1704 | 26 4 30 6 227 90 63 170 33 . 159 . . . 21 21 15 27 15 3 35 104 15 158 99 187 . . . . 9 27 . 56 104 Thermal 349 | . 4 . . . . . . . . . . . . . . . . . . . . . . . . . 19 107 38 42 9 . 12 118 Explosive 30 | . . . . . . 2 10 1 . . . . . . . 1 . . . . . . . . 9 . 3 4 . . . . . . Electromagnetic 175 | . . . . 3 2 5 7 . . . . . . . . 2 2 . . . . . . . 33 . . . 16 12 63 16 14 . Slashing 34 | . . . . . . . . . . . . . . . . . . . . . . . . . . . . . . . . . 34 . Robot Hit Streak 41 | 9 3 3 6 25 17 15 19 17 . 22 . . . 7 9 11 7 12 5 14 35 36 22 24 38 . 19 41 34 26 26 25 25 40 Robot Miss Streak 5 | 1 1 3 . 3 4 3 3 1 . 5 . . . 1 1 2 5 1 1 2 1 1 4 4 3 . 1 2 1 1 3 1 5 3 Penetration Max 2 | . . . . . . . . 1 . 1 . . . . . . . 1 . 1 1 . . 2 1 . . . . . 1 . 1 1 Secondary Targets 45 | . . 1 . 8 3 3 2 2 . . . . . 3 . . 3 . . . 4 1 5 5 5 . . . . . . . . . Max Gunslinging Chain 1 | . . 1 . 1 1 1 1 1 . . . . . 1 . . 1 . . . 1 1 1 1 1 . . . . . . . . . Capacitor 305 | . . . . . . . . . . . . . . . . . . . . . . . . . 22 . 15 97 45 50 72 4 . . Shots Hit Robots 1751 | 19 5 13 5 169 68 54 127 26 . 150 . . . 13 16 14 22 25 2 26 81 9 110 77 174 . 16 73 33 26 89 17 105 187 Core Hits 913 | 9 3 6 3 59 26 32 67 14 . 39 . . 1 10 4 5 10 13 14 10 35 4 42 39 108 . 21 37 16 17 45 6 58 160 Critical Hits 328 | . . 1 . 2 1 . 3 2 . 5 . . . . . . 1 2 . 5 18 1 6 14 45 . 2 21 2 13 31 1 27 125 Critical Kills 96 | . . 1 . 1 . . 2 1 . 2 . . . . . . . . . . 4 . 3 7 15 . 1 3 2 1 16 . 6 31 Critical Parts Destroyed 167 | . . . . . 1 . 1 1 . . . . . . . . 1 . . 5 11 1 3 5 30 . . 18 . 5 15 1 14 55 Melee Attacks 222 | . . . . 12 . . . . . 8 . . . . . 2 9 12 . 3 1 . . . 10 5 8 35 1 6 53 12 35 10 Impact 12 | . . . . 12 . . . . . . . . . . . . . . . . . . . . . . . . . . . . . . Slashing 208 | . . . . . . . . . . 7 . . . . . 2 9 12 . 3 1 . . . 10 5 8 35 1 6 53 12 34 10 Piercing . | . . . . . . . . . . . . . . . . . . . . . . . . . . . . . . . . . . . Sneak Attacks 29 | . . . . . . . . . . 7 . . . . . . 9 6 . . . . . . . . . 1 . . 1 . 5 . Combat Hostiles 3 | . . . . . . . . . . 3 . . . . . . . . . . . . . . . . . . . . . . . . Follow-up Attacks . | . . . . . . . . . . . . . . . . . . . . . . . . . . . . . . . . . . . Damage Inflicted 73640 | 190 63 67 48 2201 1045 1358 2891 521 . 4026 . . 11 269 378 534 1228 1722 847 906 2052 223 2521 1532 5500 . 2329 5978 1641 977 2749 659 8367 20807 Guns 22723 | 190 63 67 48 2179 918 657 1765 471 . 2107 . . . 269 371 267 352 415 26 684 2052 223 2451 1489 2969 . . . . 110 371 . 1179 1030 Cannons 27140 | . . . . . . . . . . 1222 . . . . . . . . . . . . . . 339 . 835 4359 1557 759 1644 513 4254 11658 Explosions 16411 | . . . . . 127 701 1060 50 . . . . . . . 242 98 . 809 160 . . . . 1951 . 1494 803 . . . . 797 8119 Melee 6666 | . . . . . . . . . . 697 . . . . . . 778 1307 . . . . . . . . . 782 . 85 734 146 2137 . Ramming 700 | . . . . 22 . . 66 . . . . . 11 . 7 25 . . 12 62 . . 70 43 241 . . 34 84 23 . . . . Kinetic 26437 | 190 26 67 48 2133 918 657 1765 471 . 3329 . . . 269 371 267 352 415 26 684 2052 223 2451 1489 2846 . . . . 110 371 . 3247 1660 Thermal 28095 | . 37 . . . . 41 146 . . . . . . . . . . . . 160 . . . . 146 . 835 4359 955 403 53 . 1813 19147 Explosive 4806 | . . . . . . 386 526 50 . . . . . . . 101 . . . . . . . . 1446 . 1494 803 . . . . . . Electromagnetic 5970 | . . . . 46 127 274 388 . . . . . . . . 141 98 . 809 . . . . . 821 . . . 602 356 1591 513 204 . Impact . | . . . . . . . . . . . . . . . . . . . . . . . . . . . . . . . . . . . Slashing 7632 | . . . . . . . . . . 697 . . . . . . 778 1307 . . . . . . . . . 782 . 85 734 146 3103 . Piercing . | . . . . . . . . . . . . . . . . . . . . . . . . . . . . . . . . . . . Highest Corruption 35 | . . . . . . . . . . . . . . . . . . . 7 . . 2 2 . 14 14 . 3 . 2 11 . 35 2 Average Corruption 9 | . . . . . . . . . . . . . . . . . . . 1 . . 1 2 . 7 8 . 1 . 1 8 . 23 1 Corruption Purged 56 | . . . . . . . . . . . . . . . . . . . . . . . . . . 14 . 4 . 3 . . 35 . Effects 480 | . . . . . . . . . . . . . . . . . . . 1 . . 2 17 . 93 38 . 11 . 3 94 . 209 12 Message Errors 106 | . . . . . . . . . . . . . . . . . . . . . . . 3 . 13 8 . 4 . 2 26 . 44 6 Matter Fused 93 | . . . . . . . . . . . . . . . . . . . . . . . . . 20 12 . . . . 28 . 33 . Heat Flow Errors 50 | . . . . . . . . . . . . . . . . . . . . . . . 3 . 8 6 . 1 . 1 13 . 18 . Energy Discharges 40 | . . . . . . . . . . . . . . . . . . . 1 . . . 1 . 10 7 . 1 . . 8 . 11 1 Data Loss (minor) 49 | . . . . . . . . . . . . . . . . . . . . . . 1 2 . 9 5 . 2 . . 6 . 22 2 Data Loss (major) 15 | . . . . . . . . . . . . . . . . . . . . . . . . . 1 . . . . . 3 . 11 . Misfires 6 | . . . . . . . . . . . . . . . . . . . . . . . . . 1 . . . . . . . 5 . Alerts 6 | . . . . . . . . . . . . . . . . . . . . . . . . . 2 . . . . . . . 4 . Misdirections 44 | . . . . . . . . . . . . . . . . . . . . . . . . . 9 . . . . . 2 . 33 . Targeting Errors 59 | . . . . . . . . . . . . . . . . . . . . . . 1 7 . 15 . . 3 . . 6 . 25 2 Weapon Failures 12 | . . . . . . . . . . . . . . . . . . . . . . . 1 . 5 . . . . . 2 . 3 1 Overload Shots . | . . . . . . . . . . . . . . . . . . . . . . . . . . . . . . . . . . . Overflow Damage 3351 | . . . . . . . 24 . . 171 . . . . . . 76 295 23 8 . . . . 78 . 121 219 63 53 179 14 913 1114 Projectiles 1385 | . . . . . . . . . . . . . . . . . . . . . . . . . . . 16 172 63 53 11 14 284 772 Explosions 661 | . . . . . . . 24 . . . . . . . . . . . 23 . . . . . 78 . 105 27 . . . . 62 342 Melee 1305 | . . . . . . . . . . 171 . . . . . . 76 295 . 8 . . . . . . . 20 . . 168 . 567 . Knockbacks 28 | . . . . . . . 1 . . . . . . . . . . . . . . . 1 . 3 . . . 1 . . . 10 12 Impact 4 | . . . . . . . 1 . . . . . . . . . . . . . . . 1 . 1 . . . 1 . . . . . Kinetic 24 | . . . . . . . . . . . . . . . . . . . . . . . . . 2 . . . . . . . 10 12 Secondary . | . . . . . . . . . . . . . . . . . . . . . . . . . . . . . . . . . . . Self-Inflicted Damage 1272 | . . . . . . 102 88 9 . . . . . . . . . . 109 74 . . . . 182 . . 104 . . . . . 604 Shots 45 | . . . . . . 3 2 1 . . . . . . . . . . 1 1 . . . . 8 . . 4 . . . . . 25 Rammed 68 | . . . . 6 . . 8 . . . . . 2 . 1 3 . . 1 5 . . 4 2 30 . . 1 5 . . . . . Targets Rammed 75 | . . . . 6 . . 9 . . . . . 2 . 1 3 . . 1 5 . . 5 3 32 . . 1 6 1 . . . . Kicked . | . . . . . . . . . . . . . . . . . . . . . . . . . . . . . . . . . . . Crushed 7 | . . . . . . . 1 . . . . . . . . . . . . . . . 1 1 2 . . . 1 1 . . . . Highest Temperature 322 | . . . 8 66 78 146 273 102 . 199 . . . 163 163 88 189 45 18 73 189 18 248 96 198 142 322 197 219 203 217 93 220 44 Average Temperature 62 | . . . 5 18 26 61 76 51 . 129 . . . 56 70 45 74 19 12 19 56 10 68 37 44 70 127 98 110 42 63 53 54 15 Received Heat Transfer 5191 | . 51 . 8 336 164 498 639 171 . . . 9 . 24 48 59 42 13 . 162 387 . 336 254 327 . 96 450 288 207 108 144 101 269 Siege Activations 65 | . . . . . . . . . . . . . . . . . . . . 1 5 1 2 3 10 . 1 7 2 5 8 1 7 12 Total Turns 1221 | . . . . . . . . . . . . . . . . . . . . 23 96 7 40 59 150 . 3 80 14 37 155 21 270 266 Longest Duration 106 | . . . . . . . . . . . . . . . . . . . . 23 28 7 25 32 49 . 3 39 11 15 80 21 106 51 Robots Corrupted 23 | . . . . . . . . . . . . . . . . . . . 1 . . . . . 5 . . . 2 1 9 3 2 . Combat Hostiles 22 | . . . . . . . . . . . . . . . . . . . . . . . . . 5 . . . 2 1 9 3 2 . Parts Fried 45 | . . . . . . . . . . . . . . . . . . . 4 . . . . . 8 . . . 8 1 13 7 4 . Impact Corruptions 1 | . . . . . . . . . . . . . . . . . . . . 1 . . . . . . . . . . . . . . Robots Melted 3 | . . . . . . . . . . . . . . . . . . . . . . . . . . . 1 1 . . . . . 1 Combat Hostiles 3 | . . . . . . . . . . . . . . . . . . . . . . . . . . . 1 1 . . . . . 1 Parts Melted 12 | . . . . . . . . . . . . . . 1 . . . . . . . . . . . . 3 5 1 . 1 . 1 . Heat Transferred 13363 | . 111 . . . . 50 100 . . . . . . . . . . . . 100 . . . . 104 . 666 3330 814 296 37 . 656 7099 Parts Sabotaged 4 | . . . . . . . . . . . . . . . . . . . . . . . . . 4 . . . . . . . . . Parts Stolen . | . . . . . . . . . . . . . . . . . . . . . . . . . . . . . . . . . . . Parts Stripped . | . . . . . . . . . . . . . . . . . . . . . . . . . . . . . . . . . . . Power Chain Reactions 4 | . . . . . . 1 1 . . . . . . . . . . . . . . . . . 2 . . . . . . . . . Missiles Intercepted 5 | . . . . . . . . . . . . . . . . . . . . . . . . . . . . . . . . . 5 . Alert | -11 -10 -10 -9 -9 -8 -8 -8 -8 -7 -7 -7 -7 -7 -7 -6 -6 -6 -6 -6 -5 -5 -5 -5 -4 -4 -4 -3 -3 -2 -2 -2 -1 -1 -1 ------- Run | Scr Mat Min Mat Sto Mat Gar Mat Gar Fac Was Fac Gar Fac Gar Fac Ext Cet Arc Hub Fac Gar Fac Gar Fac Arm Lab Res Tes Res Qua Sec Acc Com Ac0 Peak Influence 887 | 25 99 108 60 361 300 563 887 714 374 130 15 358 237 451 293 274 253 189 739 446 538 361 737 422 627 . 305 369 212 188 247 88 218 . Initial 529 | . 16 38 . 25 88 117 274 529 374 130 . 10 187 165 215 143 6 43 65 347 196 282 252 386 174 . . 171 42 63 . 82 2 . Average 192 | 17 87 63 11 131 129 424 630 626 374 32 12 268 188 342 232 106 147 143 313 323 408 300 493 346 243 . 171 168 106 63 63 49 50 . Maximum Alert Level 3 | . . . . 1 1 2 3 3 1 . . 1 1 2 1 1 1 . 3 2 2 1 3 2 2 . 1 1 1 . 1 . 1 . Low Security (%) 54 | 100 100 100 100 73 92 13 . . . 100 100 25 92 14 . 79 66 100 57 . 3 . . . 44 . 37 66 86 100 93 100 26 . Level 1 32 | . . . . 26 7 19 17 . 100 . . 74 7 45 100 20 33 . 1 81 44 100 21 72 35 . 62 33 13 . 6 . 73 . Level 2 10 | . . . . . . 67 30 78 . . . . . 40 . . . . 17 18 52 . 65 27 20 . . . . . . . . . Level 3 2 | . . . . . . . 52 21 . . . . . . . . . . 24 . . . 13 . . . . . . . . . . . Level 4 . | . . . . . . . . . . . . . . . . . . . . . . . . . . . . . . . . . . . Level 5 . | . . . . . . . . . . . . . . . . . . . . . . . . . . . . . . . . . . . High Security . | . . . . . . . . . . . . . . . . . . . . . . . . . . . . . . . . . . . Max Security . | . . . . . . . . . . . . . . . . . . . . . . . . . . . . . . . . . . . Squads Dispatched 57 | . . . . 8 5 . 6 . . . . . 1 . 1 . . . 2 3 . 2 . 1 5 . 1 4 . 4 11 2 1 . Investigation 8 | . . . . 4 1 . . . . . . . 1 . . . . . . 1 . . . . . . . . . 1 . . . . Extermination 22 | . . . . . . . . . . . . . . . 1 . . . . . . 1 . . 5 . 1 3 . 3 6 1 1 . Reinforcement 17 | . . . . 4 1 . 5 . . . . . . . . . . . 2 2 . . . . . . . . . . 2 1 . . Assault 2 | . . . . . . . 1 . . . . . . . . . . . . . . . . . . . . 1 . . . . . . Garrison 8 | . . . . . 3 . . . . . . . . . . . . . . . . 1 . 1 . . . . . . 3 . . . Intercept . | . . . . . . . . . . . . . . . . . . . . . . . . . . . . . . . . . . . Construction Impeded 3 | . . . . 1 . . . . . . . . . . . . . . 1 1 . . . . . . . . . . . . . . Haulers Reinforced 1 | . . . . . . . . . . . . . . . . . . . . 1 . . . . . . . . . . . . . . Stealth | -11 -10 -10 -9 -9 -8 -8 -8 -8 -7 -7 -7 -7 -7 -7 -6 -6 -6 -6 -6 -5 -5 -5 -5 -4 -4 -4 -3 -3 -2 -2 -2 -1 -1 -1 --------- Run | Scr Mat Min Mat Sto Mat Gar Mat Gar Fac Was Fac Gar Fac Gar Fac Ext Cet Arc Hub Fac Gar Fac Gar Fac Arm Lab Res Tes Res Qua Sec Acc Com Ac0 Distress Signals 53 | . . . 1 9 1 . 5 . . . . . . . . . 1 1 1 . . . . . 4 . 1 2 4 2 5 2 14 . Communications Jammed . | . . . . . . . . . . . . . . . . . . . . . . . . . . . . . . . . . . . Distress Signals . | . . . . . . . . . . . . . . . . . . . . . . . . . . . . . . . . . . . Times Spotted 621 | . 5 4 5 45 22 18 56 7 . 8 . 3 3 13 4 14 13 16 13 6 18 2 30 19 62 . 12 32 19 23 48 13 23 65 Peak Tracking Total 13 | . 3 3 4 8 5 6 7 3 . 2 . 2 4 4 2 3 6 2 5 3 5 2 13 8 8 . 6 7 8 6 8 6 4 4 Tactical Retreats 46 | . . . . 5 3 4 7 . . 2 . . . 1 . . . . . 2 2 . 2 1 2 . 1 2 1 4 4 . 1 2 Traps | -11 -10 -10 -9 -9 -8 -8 -8 -8 -7 -7 -7 -7 -7 -7 -6 -6 -6 -6 -6 -5 -5 -5 -5 -4 -4 -4 -3 -3 -2 -2 -2 -1 -1 -1 ------- Run | Scr Mat Min Mat Sto Mat Gar Mat Gar Fac Was Fac Gar Fac Gar Fac Ext Cet Arc Hub Fac Gar Fac Gar Fac Arm Lab Res Tes Res Qua Sec Acc Com Ac0 Traps Triggered 28 | . . . . 1 . 1 . 2 1 . . 1 . 1 . 1 . . . . 2 . 7 . 4 . . . 2 1 1 . 3 . Indirectly . | . . . . . . . . . . . . . . . . . . . . . . . . . . . . . . . . . . . Trap Hack Attempts . | . . . . . . . . . . . . . . . . . . . . . . . . . . . . . . . . . . . Triggered . | . . . . . . . . . . . . . . . . . . . . . . . . . . . . . . . . . . . Disarmed . | . . . . . . . . . . . . . . . . . . . . . . . . . . . . . . . . . . . Reprogrammed 3 | . . . . . . . . . . . . . . . . . . . . . . . . . 3 . . . . . . . . . Reused 1 | . . . . . . . . . . . . . . . . . . . . . . . . . 1 . . . . . . . . . Traps Extracted . | . . . . . . . . . . . . . . . . . . . . . . . . . . . . . . . . . . . Installed . | . . . . . . . . . . . . . . . . . . . . . . . . . . . . . . . . . . . Triggered 2 | . . . . . . . . . . . . . . . . . . . . . . . . . 2 . . . . . . . . . Machines | -11 -10 -10 -9 -9 -8 -8 -8 -8 -7 -7 -7 -7 -7 -7 -6 -6 -6 -6 -6 -5 -5 -5 -5 -4 -4 -4 -3 -3 -2 -2 -2 -1 -1 -1 ---------- Run | Scr Mat Min Mat Sto Mat Gar Mat Gar Fac Was Fac Gar Fac Gar Fac Ext Cet Arc Hub Fac Gar Fac Gar Fac Arm Lab Res Tes Res Qua Sec Acc Com Ac0 Machines Disabled 84 | . . . . 3 . . 5 1 . . . . . 1 . 1 . 1 11 3 2 . 2 5 6 1 1 7 . 6 10 2 2 14 Max in Single Turn 11 | . . . . 1 . . 1 1 . . . . . 1 . 1 . 1 11 2 1 . 1 1 1 1 1 1 . 1 1 1 1 2 Garrison Access 5 | . . . . . . . . . . . . . . . . . . . . . . . . . . . . 1 2 1 . 1 . . Garrison Relay 6 | . . . . . . . . 1 . . . . . 1 . . . . . . 2 . 2 . . . . . . . . . . . Phase Generator 1 | . . . . . . . . . . . . . . . . . . . . . . . . . . . . . . . . . 1 . Network Hub 1 | . . . . . . . . . . . . . . . . . . . 1 . . . . . . . . . . . . . . . Machines Sabotaged . | . . . . . . . . . . . . . . . . . . . . . . . . . . . . . . . . . . . Garrisons Compromised . | . . . . . . . . . . . . . . . . . . . . . . . . . . . . . . . . . . . Overloaded Fab Kills . | . . . . . . . . . . . . . . . . . . . . . . . . . . . . . . . . . . . Fab Network Shutdowns . | . . . . . . . . . . . . . . . . . . . . . . . . . . . . . . . . . . . Hacking | -11 -10 -10 -9 -9 -8 -8 -8 -8 -7 -7 -7 -7 -7 -7 -6 -6 -6 -6 -6 -5 -5 -5 -5 -4 -4 -4 -3 -3 -2 -2 -2 -1 -1 -1 --------- Run | Scr Mat Min Mat Sto Mat Gar Mat Gar Fac Was Fac Gar Fac Gar Fac Ext Cet Arc Hub Fac Gar Fac Gar Fac Arm Lab Res Tes Res Qua Sec Acc Com Ac0 Machines Accessed 112 | . 1 1 1 13 4 . 4 . . . 1 . 1 . 4 7 4 . . 3 . 1 . 1 12 . 2 9 9 11 13 5 5 . Terminals 78 | . 1 . 1 11 3 . 1 . . . . . . . 3 7 4 . . . . . . 1 8 . 1 4 5 8 11 4 5 . Fabricators 6 | . . . . . . . . . . . . . . . 1 . . . . . . . . . 3 . . 1 1 . . . . . Repair Stations 4 | . . . . . . . . . . . . . . . . . . . . 1 . . . . 1 . . 1 . 1 . . . . Recycling Units 4 | . . . . 2 . . 1 . . . . . . . . . . . . . . . . . . . . . 1 . . . . . Scanalyzers 8 | . . . . . . . 1 . . . . . . . . . . . . 1 . . . . . . 1 2 . 1 2 . . . Garrison Access 11 | . . . . . 1 . 1 . . . 1 . 1 . . . . . . 1 . 1 . . . . . 1 2 1 . 1 . . Total Hacks 420 | . 5 1 2 42 13 . 12 . . . 2 . 3 . 10 33 11 . . 8 . 3 . 9 68 . 6 27 27 44 59 17 18 . Successful 260 | . 2 1 2 21 9 . 6 . . . 2 . 3 . 5 22 7 . . 6 . 3 . 4 39 . 6 23 17 25 37 9 11 . Failed 158 | . 2 . . 21 4 . 6 . . . . . . . 5 11 3 . . 2 . . . 5 29 . . 4 10 19 22 8 7 . Catastrophic 18 | . 1 . . 5 . . 1 . . . . . . . . 1 . . . . . . . 1 3 . . . . 1 2 2 1 . Database Lockouts 2 | . 1 . . . . . . . . . . . . . . . 1 . . . . . . . . . . . . . . . . . Manual 200 | . 4 . 1 21 4 . 4 . . . . . 1 . 5 24 12 . . 2 . 1 . 3 20 . 1 4 12 31 32 4 14 . Terminals 320 | . 5 . 2 39 10 . 5 . . . . . . . 8 33 11 . . . . . . 9 48 . 2 12 19 37 47 15 18 . Fabricators 24 | . . . . . . . . . . . . . . . 2 . . . . . . . . . 17 . . 3 2 . . . . . Repair Stations 11 | . . . . . . . . . . . . . . . . . . . . 2 . . . . 3 . . 2 . 4 . . . . Recycling Units 7 | . . . . 3 . . 2 . . . . . . . . . . . . . . . . . . . . . 2 . . . . . Scanalyzers 29 | . . . . . . . 2 . . . . . . . . . . . . 2 . . . . . . 4 8 . 1 12 . . . Garrison Access 28 | . . . . . 3 . 3 . . . 2 . 3 . . . . . . 4 . 3 . . . . . 2 4 2 . 2 . . Terminal Hacks 138 | . 2 1 1 16 5 . 1 . . . . . . . 5 15 5 . . . . . . 4 22 . 1 8 6 14 20 6 6 . Part Schematic 8 | . . . . 1 . . . . . . . . . . . . . . . . . . . 1 1 . . 1 . 1 1 . 2 . Robot Analysis 4 | . 1 . . . . . . . . . . . . . . . . . . . . . . . 2 . . 1 . . . . . . Prototype ID Bank 28 | . . . . 1 . . 1 . . . . . . . 2 6 3 . . . . . . . 1 . . . . 8 3 2 1 . Open Door 16 | . . 1 . 3 . . . . . . . . . . . 4 . . . . . . . . 1 . . . . 1 5 . 1 . Level Access Points 2 | . . . . . . . . . . . . . . . . . . . . . . . . . 1 . . . 1 . . . . . Branch Access Points 6 | . 1 . . . . . . . . . . . . . 1 . . . . . . . . 1 . . 1 . 1 . . 1 . . Emergency Access Points 2 | . . . . . . . . . . . . . . . . . . . . . . . . . 1 . . . . . . 1 . . Machine Index 1 | . . . . . . . . . . . . . . . . . . . . . . . . . 1 . . . . . . . . . Terminal Index 5 | . . . . . . . . . . . . . . . . 1 . . . . . . . . . . . . 1 1 1 . 1 . Garrison Index 1 | . . . . 1 . . . . . . . . . . . . . . . . . . . . . . . . . . . . . . Alert Level 2 | . . . . 1 1 . . . . . . . . . . . . . . . . . . . . . . . . . . . . . Unreport Threat 15 | . . . . 2 2 . . . . . . . . . . 1 1 . . . . . . 1 3 . . 2 . 1 2 . . . Locate Traps 12 | . . . . 1 . . . . . . . . . . . 1 . . . . . . . . 5 . . 2 1 . 2 . . . Reprogram Traps 2 | . . . . . . . . . . . . . . . . . . . . . . . . . 2 . . . . . . . . . Dispatch Records 2 | . . . . 1 . . . . . . . . . . . . 1 . . . . . . . . . . . . . . . . . Security Status 1 | . . . . . . . . . . . . . . . . . . . . . . . . . 1 . . . . . . . . . Patrol Status 2 | . . . . . . . . . . . . . . . . . . . . . . . . . . . . . . . 1 . 1 . Recall Investigation 1 | . . . . 1 . . . . . . . . . . . . . . . . . . . . . . . . . . . . . . Recall Extermination 5 | . . . . . . . . . . . . . . . . . . . . . . . . . . . . . . 1 4 . . . Recall Reinforcements 1 | . . . . 1 . . . . . . . . . . . . . . . . . . . . . . . . . . . . . . Hauler Manifests 8 | . . . . 1 1 . . . . . . . . . . 1 . . . . . . . 1 1 . . . . 1 1 1 . . Registered Components 1 | . . . . . . . . . . . . . . . . . . . . . . . . . . . . . . . . 1 . . Registered Prototypes 1 | . . . . . . . . . . . . . . . . . . . . . . . . . . . . . 1 . . . . . Zone Layout 11 | . . . 1 2 1 . . . . . . . . . 2 1 . . . . . . . . 2 . . 1 1 . . . . . Protovariant Controls 1 | . . . . . . . . . . . . . . . . . . . . . . . . . . . . 1 . . . . . . Fabricator Hacks 7 | . . . . . . . . . . . . . . . . . . . . . . . . . 5 . . 1 1 . . . . . Load Schematic 1 | . . . . . . . . . . . . . . . . . . . . . . . . . 1 . . . . . . . . . Build 6 | . . . . . . . . . . . . . . . . . . . . . . . . . 4 . . 1 1 . . . . . Repair Station Hacks 10 | . . . . . . . . . . . . . . . . . . . . 2 . . . . 2 . . 2 . 4 . . . . Scan Component 5 | . . . . . . . . . . . . . . . . . . . . 1 . . . . 1 . . 1 . 2 . . . . Repair 5 | . . . . . . . . . . . . . . . . . . . . 1 . . . . 1 . . 1 . 2 . . . . Recycling Unit Hacks 3 | . . . . 1 . . 1 . . . . . . . . . . . . . . . . . . . . . 1 . . . . . Report Inventory 1 | . . . . 1 . . . . . . . . . . . . . . . . . . . . . . . . . . . . . . Retrieve Components 2 | . . . . . . . 1 . . . . . . . . . . . . . . . . . . . . . 1 . . . . . Scanalyzer 19 | . . . . . . . 2 . . . . . . . . . . . . 1 . . . . . . 4 6 . . 6 . . . Insert Component 15 | . . . . . . . 1 . . . . . . . . . . . . 1 . . . . . . 4 3 . . 6 . . . Analyze 4 | . . . . . . . 1 . . . . . . . . . . . . . . . . . . . . 3 . . . . . . Garrison Access Hacks 20 | . . . . . 1 . 1 . . . 2 . 2 . . . . . . 2 . 2 . . . . . 2 4 2 . 2 . . Unlock Access 6 | . . . . . 1 . 1 . . . 1 . 1 . . . . . . 1 . 1 . . . . . . . . . . . . Seal Access 5 | . . . . . . . . . . . . . . . . . . . . . . . . . . . . 1 2 1 . 1 . . Coupler Status 9 | . . . . . . . . . . . 1 . 1 . . . . . . 1 . 1 . . . . . 1 2 1 . 1 . . Unauthorized Hacks 63 | . . . 1 4 3 . 1 . . . . . 1 . . 7 2 . . 1 . 1 . . 10 . 1 4 5 5 11 1 5 . Terminals 51 | . . . 1 2 2 . 1 . . . . . . . . 7 2 . . . . . . . 7 . 1 3 4 4 11 1 5 . Track 25 | . . . 1 . . . . . . . . . . . . 4 1 . . . . . . . 3 . 1 2 1 2 6 1 3 . Assimilate 1 | . . . . . . . . . . . . . . . . . . . . . . . . . . . . . . 1 . . . . Botnet 16 | . . . . 2 2 . 1 . . . . . . . . 2 1 . . . . . . . 2 . . 1 1 . 3 . 1 . Detonate 1 | . . . . . . . . . . . . . . . . . . . . . . . . . . . . . . . 1 . . . Disrupt 7 | . . . . . . . . . . . . . . . . 1 . . . . . . . . 2 . . . 2 1 1 . . . Operators 1 | . . . . . . . . . . . . . . . . . . . . . . . . . . . . . . . . . 1 . Fabricators 5 | . . . . . . . . . . . . . . . . . . . . . . . . . 3 . . 1 1 . . . . . Prioritize 4 | . . . . . . . . . . . . . . . . . . . . . . . . . 2 . . 1 1 . . . . . Siphon 1 | . . . . . . . . . . . . . . . . . . . . . . . . . 1 . . . . . . . . . Repair Stations . | . . . . . . . . . . . . . . . . . . . . . . . . . . . . . . . . . . . Recycling Units 2 | . . . . 2 . . . . . . . . . . . . . . . . . . . . . . . . . . . . . . Tunnel 2 | . . . . 2 . . . . . . . . . . . . . . . . . . . . . . . . . . . . . . Scanalyzers 1 | . . . . . . . . . . . . . . . . . . . . . . . . . . . . . . 1 . . . . Researchers 1 | . . . . . . . . . . . . . . . . . . . . . . . . . . . . . . 1 . . . . Garrison Access 4 | . . . . . 1 . . . . . . . 1 . . . . . . 1 . 1 . . . . . . . . . . . . Reprogram 3 | . . . . . 1 . . . . . . . . . . . . . . 1 . 1 . . . . . . . . . . . . Eject 1 | . . . . . . . . . . . . . 1 . . . . . . . . . . . . . . . . . . . . . Data Cores Recovered . | . . . . . . . . . . . . . . . . . . . . . . . . . . . . . . . . . . . Used . | . . . . . . . . . . . . . . . . . . . . . . . . . . . . . . . . . . . Hacking Detections 84 | . 1 . 1 11 4 . 4 . . . 1 . . . 4 6 4 . . . . 1 . 1 11 . 2 3 5 9 7 4 5 . Full Trace Events 5 | . . . . 4 1 . . . . . . . . . . . . . . . . . . . . . . . . . . . . . Feedback Events . | . . . . . . . . . . . . . . . . . . . . . . . . . . . . . . . . . . . Feedback Blocked . | . . . . . . . . . . . . . . . . . . . . . . . . . . . . . . . . . . . Robot Schematics Acquired . | . . . . . . . . . . . . . . . . . . . . . . . . . . . . . . . . . . . Robots Built 10 | . . . . . . . . . . . . . . . . . . . . . . . . . 7 . . . 3 . . . . . Matter 1349 | . . . . . . . . . . . . . . . . . . . . . . . . . 965 . . . 384 . . . . . Time 671 | . . . . . . . . . . . . . . . . . . . . . . . . . 467 . . . 204 . . . . . Total Robot Build Rating 73 | . . . . . . . . . . . . . . . . . . . . . . . . . 49 . . . 24 . . . . . Part Schematics Acquired 12 | . . . . 1 . . 1 . . . . . . . . . . . . . . . . 1 1 . . 4 . 1 1 . 2 . Parts Built 4 | . . . . . . . . . . . . . . . . . . . . . . . . . 2 . . 2 . . . . . . Matter 534 | . . . . . . . . . . . . . . . . . . . . . . . . . 256 . . 278 . . . . . . Time 110 | . . . . . . . . . . . . . . . . . . . . . . . . . 64 . . 46 . . . . . . Total Part Build Rating 34 | . . . . . . . . . . . . . . . . . . . . . . . . . 16 . . 18 . . . . . . Parts Repaired 5 | . . . . . . . . . . . . . . . . . . . . 1 . . . . 1 . . 1 . 2 . . . . Time 208 | . . . . . . . . . . . . . . . . . . . . 108 . . . . 22 . . 62 . 16 . . . . Parts Recycled . | . . . . . . . . . . . . . . . . . . . . . . . . . . . . . . . . . . . Recycled Matter . | . . . . . . . . . . . . . . . . . . . . . . . . . . . . . . . . . . . Retrieved Matter . | . . . . . . . . . . . . . . . . . . . . . . . . . . . . . . . . . . . Retrieved Components 2 | . . . . . . . 2 . . . . . . . . . . . . . . . . . . . . . . . . . . . Parts Scanalyzed 4 | . . . . . . . 1 . . . . . . . . . . . . . . . . . . . . 3 . . . . . . Part Schematics Acquired 4 | . . . . . . . 1 . . . . . . . . . . . . . . . . . . . . 3 . . . . . . Parts Damaged . | . . . . . . . . . . . . . . . . . . . . . . . . . . . . . . . . . . . Bothacking | -11 -10 -10 -9 -9 -8 -8 -8 -8 -7 -7 -7 -7 -7 -7 -6 -6 -6 -6 -6 -5 -5 -5 -5 -4 -4 -4 -3 -3 -2 -2 -2 -1 -1 -1 ------------ Run | Scr Mat Min Mat Sto Mat Gar Mat Gar Fac Was Fac Gar Fac Gar Fac Ext Cet Arc Hub Fac Gar Fac Gar Fac Arm Lab Res Tes Res Qua Sec Acc Com Ac0 Used RIF Installer 6 | . . . . . . 1 . 1 . . . 1 . 1 . . . . . . 1 . 1 . . . . . . . . . . . Coupler Efficiency 1 | . . . . . . . . 1 . . . . . . . . . . . . . . . . . . . . . . . . . . Threat Obfuscator 1 | . . . . . . . . . . . . 1 . . . . . . . . . . . . . . . . . . . . . . Watcher Feeds 1 | . . . . . . . . . . . . . . 1 . . . . . . . . . . . . . . . . . . . . Structural Interface 1 | . . . . . . . . . . . . . . . . . . . . . 1 . . . . . . . . . . . . . Autooverride 1 | . . . . . . . . . . . . . . . . . . . . . . . 1 . . . . . . . . . . . Robots Hacked 14 | . . . . . . . . . . 1 . . . . . . . . . 1 . . . . . . . 1 1 . 5 3 2 . Non-combat 8 | . . . . . . . . . . . . . . . . . . . . . . . . . . . . . 1 . 3 2 2 . Combat 6 | . . . . . . . . . . 1 . . . . . . . . . 1 . . . . . . . 1 . . 2 1 . . Autooverrided 1 | . . . . . . . . . . . . . . . . . . . . . . . . . . . . . . . . 1 . . Robot Hacks Applied 15 | . . . . . . . . . . 1 . . . . . . . . . 1 . . . . . . . 1 1 . 7 2 2 . parse_system 1 | . . . . . . . . . . . . . . . . . . . . . . . . . . . . . . . . . 1 . drop_inventory 1 | . . . . . . . . . . . . . . . . . . . . . . . . . . . . . 1 . . . . . block_reporting 2 | . . . . . . . . . . . . . . . . . . . . . . . . . . . . . . . 2 . . . relay_feed 1 | . . . . . . . . . . . . . . . . . . . . . . . . . . . . . . . . 1 . . disable_scanner 3 | . . . . . . . . . . . . . . . . . . . . . . . . . . . . 1 . . 2 . . . report_analyses 2 | . . . . . . . . . . . . . . . . . . . . . . . . . . . . . . . 2 . . . ignore_targets 1 | . . . . . . . . . . 1 . . . . . . . . . . . . . . . . . . . . . . . . find_garrison 1 | . . . . . . . . . . . . . . . . . . . . 1 . . . . . . . . . . . . . . formatsys_high 3 | . . . . . . . . . . . . . . . . . . . . . . . . . . . . . . . 1 1 1 . Relay Couplers Released 39 | . . . . . . . . 5 . . . . 3 4 . . . . . . 10 . 7 . . . . . 1 2 4 3 . . Ejected 3 | . . . . . . . . . . . . . 3 . . . . . . . . . . . . . . . . . . . . . Machine Destruction 32 | . . . . . . . . 5 . . . . . 4 . . . . . . 10 . 7 . . . . . 1 2 . 3 . . Programmers 4 | . . . . . . . . . . . . . . . . . . . . . . . . . . . . . . . 4 . . . Attached 11 | . . . . . . . . . . 1 . . . . 1 . . . . 1 4 . . . . . . 1 . . 1 2 . . Robots Rewired 8 | . . . . . . . . . . . . . . . . 6 . . . . . . . . 2 . . . . . . . . . Allies Hacked 1 | . . . . . . . . . . . . . . . . . . . . . . . . . 1 . . . . . . . . . Hacks Repelled . | . . . . . . . . . . . . . . . . . . . . . . . . . . . . . . . . . . . Allies | -11 -10 -10 -9 -9 -8 -8 -8 -8 -7 -7 -7 -7 -7 -7 -6 -6 -6 -6 -6 -5 -5 -5 -5 -4 -4 -4 -3 -3 -2 -2 -2 -1 -1 -1 -------- Run | Scr Mat Min Mat Sto Mat Gar Mat Gar Fac Was Fac Gar Fac Gar Fac Ext Cet Arc Hub Fac Gar Fac Gar Fac Arm Lab Res Tes Res Qua Sec Acc Com Ac0 Total Allies 73 | . . . . 10 . . . . . 19 . . . . . 11 5 . . . . 1 . . 19 . . . 3 1 1 2 1 . Largest Group 18 | . . . . 10 5 . . . . 18 16 16 10 5 . 11 10 7 5 . . 1 1 . 10 . . . 3 1 1 2 1 . Highest-Rated Group 735 | . . . . 88 48 . . . . 446 376 376 275 159 . 425 735 517 470 . . 49 49 . 481 . . . 126 44 37 74 44 . Highest-Rated Ally 156 | . . . . 16 16 . . . . 35 33 33 33 33 . 156 156 94 94 . . 49 49 . 60 . . . 42 44 37 44 44 . Total Orders 66 | . . 1 2 5 1 . . . . . . . . . . . 2 . 1 4 . 1 . . 1 . . 4 . 1 1 8 10 24 STAY 8 | . . . . . . . . . . . . . . . . . 2 . . . . . . . 1 . . . . 1 1 1 2 . ROAM 3 | . . . . . 1 . . . . . . . . . . . . . 1 . . . . . . . . 1 . . . . . . FOLLOW 1 | . . . . . . . . . . . . . . . . . . . . . . . . . . . . . . . . 1 . . EXPLORE 42 | . . . 1 5 . . . . . . . . . . . . . . . 3 . 1 . . . . . 2 . . . 6 4 20 RETURN 12 | . . 1 1 . . . . . . . . . . . . . . . . 1 . . . . . . . 1 . . . . 4 4 Ally Attacks 577 | . . . . 48 21 . . . . 46 1 90 4 50 . 94 65 16 47 . . . 9 . 69 . . . 16 . . 1 . . Total Damage 12645 | . . . . 437 255 . . . . 743 20 1207 74 800 . 2502 1395 743 1699 . . . 379 . 1974 . . . 417 . . . . . Kills 84 | . . . . 8 3 . . . . 1 . 11 1 7 . 15 7 3 14 . . . 2 . 12 . . . . . . . . . Allies Corrupted 2 | . . . . . . . . . . . . . . . . . . . 1 . . . . . 1 . . . . . . . . . Allies Melted 1 | . . . . . . . . . . . . . . . . . . . . . . . 1 . . . . . . . . . . . Intel | -11 -10 -10 -9 -9 -8 -8 -8 -8 -7 -7 -7 -7 -7 -7 -6 -6 -6 -6 -6 -5 -5 -5 -5 -4 -4 -4 -3 -3 -2 -2 -2 -1 -1 -1 ------- Run | Scr Mat Min Mat Sto Mat Gar Mat Gar Fac Was Fac Gar Fac Gar Fac Ext Cet Arc Hub Fac Gar Fac Gar Fac Arm Lab Res Tes Res Qua Sec Acc Com Ac0 Robot Analysis Total 4 | . 1 . . . . . . . . . . . . . . . . . . . . . . . 2 . . 1 . . . . . . Derelict Logs Recovered 2 | . . 2 . . . . . . . . . . . . . . . . . . . . . . . . . . . . . . . . Drone Launches 109 | . . 1 1 19 . . . . . . . . . . . . . . . 16 . 2 . . . . . 3 . . . 35 5 27 Drone Recoveries 72 | . . 1 1 5 . . . . . . . . . . . . . . . 13 . . . . . . . 1 . . . 18 6 27 Exploration | -11 -10 -10 -9 -9 -8 -8 -8 -8 -7 -7 -7 -7 -7 -7 -6 -6 -6 -6 -6 -5 -5 -5 -5 -4 -4 -4 -3 -3 -2 -2 -2 -1 -1 -1 ------------- Run | Scr Mat Min Mat Sto Mat Gar Mat Gar Fac Was Fac Gar Fac Gar Fac Ext Cet Arc Hub Fac Gar Fac Gar Fac Arm Lab Res Tes Res Qua Sec Acc Com Ac0 Turns Passed 32445 | 177 210 659 54 1899 608 596 878 351 152 1590 100 190 205 279 351 1436 393 235 177 691 751 297 1253 610 2075 1642 311 1377 584 1637 2985 421 4870 2401 Spaces Moved 13394 | 88 131 331 32 785 251 253 321 165 83 590 50 102 109 137 178 682 178 106 108 277 318 138 455 249 891 213 127 574 282 599 1219 206 2148 1018 Core 179 | 17 . . . . . . . . . . . . . . . . . . . . . . . . . 74 . . . . . . 88 . Treads 12804 | 71 83 . . 785 251 253 321 165 83 590 50 102 109 137 178 682 178 106 108 277 318 138 455 249 891 139 127 574 282 599 1219 206 2060 1018 Legs . | . . . . . . . . . . . . . . . . . . . . . . . . . . . . . . . . . . . Wheels 411 | . 48 331 32 . . . . . . . . . . . . . . . . . . . . . . . . . . . . . . . Hover . | . . . . . . . . . . . . . . . . . . . . . . . . . . . . . . . . . . . Flight . | . . . . . . . . . . . . . . . . . . . . . . . . . . . . . . . . . . . Fastest Speed 50 | 50 80 80 120 180 180 180 180 180 180 180 180 180 180 180 180 180 160 160 160 160 180 160 180 160 160 165 190 145 145 165 165 165 155 155 Average Speed 182 | 138 137 109 123 185 180 196 183 180 180 180 180 180 180 180 180 185 162 160 160 178 180 179 180 167 160 756 190 168 152 165 165 165 187 169 Slowest Speed 1850 | 160 160 110 130 200 180 220 200 200 180 200 180 180 180 180 180 200 180 160 160 180 180 180 180 180 165 1850 190 190 165 165 165 165 850 172 Overloaded Moves . | . . . . . . . . . . . . . . . . . . . . . . . . . . . . . . . . . . . Propulsion Burnouts . | . . . . . . . . . . . . . . . . . . . . . . . . . . . . . . . . . . . Robots Hopped 9 | . . . . . . . . . . . . . . . . . . . . . . . . . 9 . . . . . . . . . Cave-ins Triggered . | . . . . . . . . . . . . . . . . . . . . . . . . . . . . . . . . . . . Teleports 6 | . . . . . . . . . . . . . . . . . . . . . . . . . . . . . . 2 2 . 1 1 Exploration Rate (%) 42 | 4 31 69 10 94 24 47 42 38 3 97 2 32 4 38 8 70 62 79 12 12 55 6 78 10 58 94 5 82 15 61 71 37 58 96 Regions Visited 34 Branch Regions 13 Pre-discovered Areas 2 | . . . . 2 . . . . . . . . . . . . . . . . . . . . . . . . . . . . . . Known Exits Taken 16 | . 1 . 1 1 1 . 1 . . . 1 . 1 . 1 . . . . 1 . 1 . 1 . 1 1 . 1 . 1 1 . . Unknown Exits Taken 10 | 1 . 1 . . . . . . . . . . . . . 1 1 1 1 . . . . . 1 . . 1 . 1 . . 1 . Scrap Searched 1 | . . 1 . . . . . . . . . . . . . . . . . . . . . . . . . . . . . . . . Spaces Dug 225 | . . . . 3 . 8 25 . . . . . . . . 1 . . . 3 . . . . 5 . 6 14 10 17 23 5 13 92 Terrain Destroyed 1531 | . . . . 3 . 11 75 . . . . . . . 1 13 . . 153 44 . . 10 4 159 . 34 111 16 31 27 5 102 732 Melee 79 | . . . . 3 . . . . . . . . . . . 1 . . . 3 . . . . 5 . 6 11 1 3 21 5 13 7 Projectile 142 | . . . . . . . . . . . . . . . 1 . . . 1 9 . . 10 4 1 . 1 14 15 28 6 . 27 25 AOE 1310 | . . . . . . 11 75 . . . . . . . . 12 . . 152 32 . . . . 153 . 27 86 . . . . 62 700 Terrain Rammed . | . . . . . . . . . . . . . . . . . . . . . . . . . . . . . . . . . . . Walls Destroyed . | . . . . . . . . . . . . . . . . . . . . . . . . . . . . . . . . . . . Machines Disabled . | . . . . . . . . . . . . . . . . . . . . . . . . . . . . . . . . . . . Actions | -11 -10 -10 -9 -9 -8 -8 -8 -8 -7 -7 -7 -7 -7 -7 -6 -6 -6 -6 -6 -5 -5 -5 -5 -4 -4 -4 -3 -3 -2 -2 -2 -1 -1 -1 --------- Run | Scr Mat Min Mat Sto Mat Gar Mat Gar Fac Was Fac Gar Fac Gar Fac Ext Cet Arc Hub Fac Gar Fac Gar Fac Arm Lab Res Tes Res Qua Sec Acc Com Ac0 Total 19376 | 116 149 604 44 1052 340 296 475 195 87 1001 60 109 119 154 191 831 249 146 109 432 421 175 768 370 1315 242 178 920 421 1224 2037 249 2827 1470 Wait 3056 | . . 234 1 67 34 . 12 3 . 322 7 4 . 7 1 35 19 3 . 107 35 14 218 50 131 . 3 146 44 492 570 2 347 148 Move 13346 | 87 130 330 31 784 250 252 320 164 83 589 49 101 108 136 177 681 177 105 108 276 317 138 454 248 874 212 126 573 281 598 1218 205 2147 1017 Hop 7 | . . . . . . . . . . . . . . . . . . . . . . . . . 7 . . . . . . . . . Pick Up 309 | 5 6 10 3 21 6 3 15 5 2 4 . . 4 1 . 9 7 8 . 10 8 5 6 10 35 7 3 11 10 27 15 2 43 8 Fast Attach 169 | 8 . 3 . 17 2 1 4 1 . 5 2 . . . . 3 5 1 . 2 4 5 3 3 21 2 2 10 7 8 17 1 23 9 Attach 181 | . 1 3 4 8 2 3 9 4 2 2 . . . . 2 4 3 3 . 5 5 . 3 9 15 3 7 5 4 7 9 5 30 24 Detach 67 | . . 3 2 3 1 . . . . 1 . . . . . 3 . . . 1 . 1 . 3 3 2 2 3 4 2 3 . 14 16 Swap 192 | 1 7 1 . 18 5 6 15 1 . 7 . . 1 . 3 14 5 2 . 6 4 . 3 3 16 1 3 7 2 6 30 1 16 8 Drop 327 | 2 1 5 1 32 8 1 18 3 . 7 2 . 4 1 . 10 13 7 . 2 10 5 8 8 38 10 2 17 7 16 14 2 57 16 Fire 1333 | 13 4 15 2 77 32 28 73 12 . 56 . . . 7 7 8 11 5 1 15 35 7 54 33 133 . 22 112 55 61 108 18 115 214 Melee 222 | . . . . 12 . . . . . 8 . . . . . 2 9 12 . 3 1 . . . 10 5 8 35 1 6 53 12 35 10 Ram . | . . . . . . . . . . . . . . . . . . . . . . . . . . . . . . . . . . . Kick . | . . . . . . . . . . . . . . . . . . . . . . . . . . . . . . . . . . . Crush 74 | . . . . 6 . . 9 . . . . . 2 . 1 3 . . . 5 . . 5 3 32 . . 1 6 1 . . . . Escape Stasis 28 | . . . . . . 2 . 2 . . . 4 . 2 . 2 . . . . 2 . 14 . . . . . . . . . . . Rewire 58 | . . . . 1 . . . . . . . . . . . 57 . . . . . . . . . . . . . . . . . . Trap . | . . . . . . . . . . . . . . . . . . . . . . . . . . . . . . . . . . . Miscellaneous 7 | . . . . 6 . . . . . . . . . . . . . . . . . . . . . . . . . . . 1 . . Route ------- -11/Scrapyard -10/Materials -10/Mines -9/Materials (discovered 2 exits: Mat / *Sto) -9/Storage -8/Materials -8/Garrison (discovered 3 exits: *Mat x3) -8/Materials (discovered 2 exits: [*Fac] / Gar) -8/Garrison -7/Factory -7/Waste -7/Factory -7/Garrison -7/Factory -7/Garrison -6/Factory (discovered 5 exits: Fac / Low x2 / *Ext x2) -6/Extension (discovered 2 exits: *Fac / *Cet) -6/Cetus -6/Archives (discovered 3 exits: *Fac / [*Hub x2]) -6/Hub_04(d) -5/Factory -5/Garrison -5/Factory (discovered 2 exits: [*Upp] / Gar) -5/Garrison (discovered 3 exits: *Fac x3) -4/Factory (discovered 3 exits: Upp x2 / *Arm) -4/Armory (discovered 3 exits: Res x2 / *Lab) -4/Lab -3/Research (discovered 2 exits: *Tes x2) -3/Testing -2/Research (discovered 5 exits: Acc x3 / *Qua x2) -2/Quarantine (discovered 2 exits: *Acc / *Sec) -2/Section 7 -1/Access -1/Command (discovered 2 exits: [*Sur] / [*Ac0]) -1/Access_0 0b11 Command History --------- Turn | Location | Event 21 | -11/Scrapyard | Discovered new exit (range 12) 178 | -11/Scrapyard | Entered Materials 231 | -10/Materials | Identified exit to Mines 231 | -10/Materials | Central database locked down 318 | -10/Materials | Build established: Mutant 388 | -10/Materials | Entered Mines 450 | -10/Mines | Found the Drone Emporium 454 | -10/Mines | Found Prototype Device 483 | -10/Mines | Identified Decoy Drone Bay 536 | -10/Mines | Learned 2 Materials zone layouts 594 | -10/Mines | Assembled infested the area 599 | -10/Mines | Assisted by a Guerilla fighting off Assembled 1025 | -10/Mines | Discovered new exit (range 12) 1047 | -10/Mines | Entered Materials 1047 | -9/Materials | Evolved 2 slots: Utility x1, Weapon x1 1048 | -9/Materials | Identified exit to Storage 1049 | -9/Materials | Identified exit to Materials 1101 | -9/Materials | Entered Storage 1372 | -9/Storage | Destroyed 8 combat bots 1705 | -9/Storage | Discovered exit to Materials (range 5) 2268 | -9/Storage | Build established: Hauler-Tank 2556 | -9/Storage | Assisted by bots powering up and referring to "LRC-V3" 2845 | -9/Storage | Build established: Commander-Tank 3000 | -9/Storage | Entered Materials 3000 | -8/Materials | Accompanied by 5 allies 3000 | -8/Materials | Evolved 2 slots: Propulsion x1, Utility x1 3247 | -8/Materials | Garrison activated, responded to threat 3339 | -8/Materials | Build established: Hauler-Tank 3528 | -8/Materials | Identified exit to Garrison 3608 | -8/Materials | Entered Garrison 3685 | -8/Garrison | Triggered checkpoint 3782 | -8/Garrison | Destroyed 12 combat bots 3800 | -8/Garrison | Lost 3 parts (3n) 3866 | -8/Garrison | Discovered new exit (range 10) 4004 | -8/Garrison | Discovered new exit (range 8) 4082 | -8/Garrison | Triggered checkpoint 4162 | -8/Garrison | Discovered new exit (range 8) 4192 | -8/Garrison | Installed Relay Interface Framework 4204 | -8/Garrison | Entered Materials 4604 | -8/Materials | First assault squad dispatched 4683 | -8/Materials | Core integrity fell below 50% 4970 | -8/Materials | Discovered new exit (range 14) 5077 | -8/Materials | Identified exit to Garrison 5082 | -8/Materials | Entered Garrison 5091 | -8/Garrison | Expanded RIF knowledge: Coupler Efficiency 5122 | -8/Garrison | Triggered checkpoint 5192 | -8/Garrison | Triggered checkpoint 5262 | -8/Garrison | Discovered new exit (range 12) 5344 | -8/Garrison | Triggered checkpoint 5357 | -8/Garrison | Garrison Relay disabled 5433 | -8/Garrison | Entered Factory 5433 | -7/Factory | Evolved 2 slots: Utility x2 5585 | -7/Factory | Sucked down chute 5585 | -7/Factory | Entered Waste 5586 | -7/Waste | Met a frightened Derelict 5716 | -7/Waste | Destroyed C-40 Crusher 5753 | -7/Waste | Destroyed C-40 Crusher 5764 | -7/Waste | Destroyed C-40 Crusher 5837 | -7/Waste | Spotted C-40 Crusher 5858 | -7/Waste | Allies destroyed C-40 Crusher 5883 | -7/Waste | Crushed by Compactor (0 parts destroyed, 1 dropped) 5883 | -7/Waste | Destroyed C-40 Crusher 6114 | -7/Waste | Spotted C-40 Crusher 6379 | -7/Waste | Discovered new exit (range 10) 6663 | -7/Waste | Destroyed C-40 Crusher 6749 | -7/Waste | Warlord forces began an assault 7175 | -7/Waste | Entered Factory 7175 | -7/Factory | Accompanied by 16 allies 7266 | -7/Factory | Identified exit to Garrison 7275 | -7/Factory | Entered Garrison 7275 | -7/Garrison | Accompanied by 16 allies 7316 | -7/Garrison | Triggered checkpoint 7316 | -7/Garrison | Triggered checkpoint 7332 | -7/Garrison | Triggered checkpoint 7389 | -7/Garrison | Discovered new exit (range 12) 7425 | -7/Garrison | Expanded RIF knowledge: Threat Obfuscation 7465 | -7/Garrison | Entered Factory 7465 | -7/Factory | Accompanied by 10 allies 7647 | -7/Factory | Identified exit to Garrison 7670 | -7/Factory | Entered Garrison 7670 | -7/Garrison | Accompanied by 5 allies 7736 | -7/Garrison | Triggered checkpoint 7763 | -7/Garrison | Garrison Relay disabled 7812 | -7/Garrison | Triggered checkpoint 7826 | -7/Garrison | P-60 Hacker assimilated allied 6C-VRC(g) 7907 | -7/Garrison | Discovered new exit (range 15) 7941 | -7/Garrison | Expanded RIF knowledge: Patrol Navigation 7945 | -7/Garrison | Build established: Bothacker-Tank 7949 | -7/Garrison | Entered Factory 7949 | -6/Factory | Evolved 2 slots: Utility x2 7987 | -6/Factory | Identified exit to Lower Caves 7987 | -6/Factory | Identified exit to Extension 7987 | -6/Factory | Discovered new exit (range 15) 8272 | -6/Factory | Build established: Hacker-Tank 8300 | -6/Factory | Entered Extension 8455 | -6/Extension | Rescued a captive Derelict 8473 | -6/Extension | Rescued a captive Derelict 8534 | -6/Extension | Rescued A7 8627 | -6/Extension | Rescued a captive Derelict 8628 | -6/Extension | Rescued a captive Derelict 9282 | -6/Extension | Build established: Commander-Tank 9449 | -6/Extension | Spotted B-75 Beast 9451 | -6/Extension | Allies destroyed B-75 Beast 9465 | -6/Extension | Spotted B-75 Beast 9474 | -6/Extension | Allies destroyed B-75 Beast 9703 | -6/Extension | Discovered new exit (range 16) 9705 | -6/Extension | Discovered new exit (range 15) 9736 | -6/Extension | Entered Cetus 9736 | -6/Cetus | Accompanied by 7 allies (A7) 9741 | -6/Cetus | Acquired a Cetus Manufacturing Module code from A7 9760 | -6/Cetus | Spotted Cetus Guard 9760 | -6/Cetus | Spotted Cetus Guard 9762 | -6/Cetus | Spotted Cetus Guard 9764 | -6/Cetus | Spotted Cetus Guard 9770 | -6/Cetus | Allies destroyed Cetus Guard 9774 | -6/Cetus | Allies destroyed Cetus Guard 9782 | -6/Cetus | Allies destroyed Cetus Guard 9788 | -6/Cetus | Allies destroyed Cetus Guard 9896 | -6/Cetus | Started Cetus Manufacturing Module 9921 | -6/Cetus | Manufactured an Enhanced Grunt 9943 | -6/Cetus | Central database locked down 9946 | -6/Cetus | Manufactured an Enhanced Grunt 9971 | -6/Cetus | Manufactured an Enhanced Grunt 9996 | -6/Cetus | Manufactured an Enhanced Grunt 10021 | -6/Cetus | Manufactured an Enhanced Grunt 10025 | -6/Cetus | Discovered new exit (range 15) 10096 | -6/Cetus | Destroyed A7 10100 | -6/Cetus | Extracted ID and sensor layout for unrecognized location from A7's data core 10129 | -6/Cetus | Entered Archives 10129 | -6/Archives | Accompanied by 7 allies 10186 | -6/Archives | Discovered new exit (range 16) 10300 | -6/Archives | Discovered new exit (range 14) 10316 | -6/Archives | Discovered new exit (range 16) 10364 | -6/Archives | Entered Hub_04(d) 10364 | -6/Hub_04(d) | Accompanied by 5 allies 10364 | -6/Hub_04(d) | Discovered new exit (range 8) 10465 | -6/Hub_04(d) | Network Hub disabled 10526 | -6/Hub_04(d) | Spotted Lightning 10527 | -6/Hub_04(d) | Spotted Lightning 10527 | -6/Hub_04(d) | Spotted Lightning 10541 | -6/Hub_04(d) | Entered Factory 10541 | -5/Factory | Evolved 2 slots: Utility x2 10617 | -5/Factory | Found Exp. Terrain Scan Processor 10634 | -5/Factory | Build established: Scavenger-Tank 10778 | -5/Factory | Repaired Centrium Heavy Treads 11200 | -5/Factory | Identified exit to Garrison 11232 | -5/Factory | Entered Garrison 11244 | -5/Garrison | Triggered checkpoint 11399 | -5/Garrison | Garrison Relay disabled 11466 | -5/Garrison | Triggered checkpoint 11566 | -5/Garrison | Spotted B-75 Beast 11591 | -5/Garrison | Destroyed B-75 Beast 11614 | -5/Garrison | Triggered checkpoint 11756 | -5/Garrison | Triggered checkpoint 11780 | -5/Garrison | Discovered new exit (range 10) 11788 | -5/Garrison | Build established: Bothacker-Tank 11816 | -5/Garrison | Expanded RIF knowledge: Structural Interface 11881 | -5/Garrison | Garrison Relay disabled 11983 | -5/Garrison | Entered Factory 12079 | -5/Factory | Found Mni. Smartbomb Launcher 12106 | -5/Factory | Discovered new exit (range 16) 12274 | -5/Factory | Identified exit to Garrison 12280 | -5/Factory | Entered Garrison 12280 | -5/Garrison | Accompanied by 1 ally 12308 | -5/Garrison | Triggered checkpoint 12339 | -5/Garrison | Garrison Relay disabled 12426 | -5/Garrison | Build established: Botlord-Tank 12511 | -5/Garrison | Spotted B-75 Beast 12517 | -5/Garrison | Triggered checkpoint 12546 | -5/Garrison | Destroyed B-75 Beast 12646 | -5/Garrison | Discovered new exit (range 14) 12910 | -5/Garrison | Triggered checkpoint 12986 | -5/Garrison | Discovered new exit (range 8) 13096 | -5/Garrison | Triggered checkpoint 13140 | -5/Garrison | Garrison Relay disabled 13375 | -5/Garrison | Lost 3 parts (2u1w) 13395 | -5/Garrison | Destroyed 13 combat bots 13499 | -5/Garrison | Discovered new exit (range 10) 13524 | -5/Garrison | Expanded RIF knowledge: Autooverride 13533 | -5/Garrison | Entered Factory 13533 | -4/Factory | Evolved 2 slots: Propulsion x1, Utility x1 13574 | -4/Factory | Identified exit to Upper Caves 13574 | -4/Factory | Identified exit to Armory 14006 | -4/Factory | Destroyed 7 combat bots 14114 | -4/Factory | Garrison activated, responded to threat 14143 | -4/Factory | Entered Armory 14303 | -4/Armory | Found Antimissile System 14371 | -4/Armory | Identified exit to Research 14448 | -4/Armory | Build established: Botlord-Mutant 14466 | -4/Armory | Repaired Coolant Injector 14956 | -4/Armory | Spotted B-86 Titan 15000 | -4/Armory | Fabricated O-32 Director? 15118 | -4/Armory | Found Quantum Capacitor 15157 | -4/Armory | Found Quantum Capacitor 15171 | -4/Armory | Lost 3 parts (2u1w) 15214 | -4/Armory | Destroyed 12 combat bots 15252 | -4/Armory | Found Fusion Bomb Launcher 15257 | -4/Armory | Found Gamma Bomb Array 15299 | -4/Armory | System corruption reached 10% 15339 | -4/Armory | Assisted by bots powering up and referring to "LRC-V3" 15709 | -4/Armory | Destroyed 7 combat bots 15733 | -4/Armory | Discovered new exit (range 23) 15891 | -4/Armory | Fabricated Arm. Heavy Treads? 15939 | -4/Armory | Fabricated L-61 Swordsman? 16043 | -4/Armory | Fabricated L-61 Swordsman? 16147 | -4/Armory | P-70 Sage assimilated allied Swordsman 7f 16218 | -4/Armory | Entered Lab 16220 | -4/Lab | Discovered exit to Research (range 9) 16238 | -4/Lab | Hidden lab's door opened automatically 16238 | -4/Lab | Sensor layout match revealed 16239 | -4/Lab | Gained access to the hidden lab's interior 16525 | -4/Lab | Build established: Bothacker-Mutant 17660 | -4/Lab | Found Alien Artifact 17661 | -4/Lab | Identified Integrated Dissipator 17661 | -4/Lab | Installed Integrated Dissipator, increased core heat dissipation (+20) 17673 | -4/Lab | Found Alien Artifact 17689 | -4/Lab | Found Alien Artifact 17730 | -4/Lab | Found Prototype Special Weapon 17763 | -4/Lab | Found Prototype Protection 17763 | -4/Lab | Identified Med. Regenerative Plating 17768 | -4/Lab | Found Prototype Energy Cannon 17768 | -4/Lab | Identified Potential Cannon 17775 | -4/Lab | Found Prototype Energy Cannon 17789 | -4/Lab | Found Prototype Hackware 17838 | -4/Lab | Found Alien Artifact 17849 | -4/Lab | Unable to decrypt terminal 17860 | -4/Lab | Entered Research 17860 | -3/Research | Evolved 2 slots: Utility x2 17862 | -3/Research | Identified Warp Cannon 17935 | -3/Research | Identified Deep Network Scanner 17936 | -3/Research | Identified Transdimensional Reconstructor 17936 | -3/Research | Identified Core Expander 17936 | -3/Research | Identified Core Reset Matrix 17937 | -3/Research | Installed Core Expander, added new Utility slot 17969 | -3/Research | Identified exit to Testing 18001 | -3/Research | Found Antimissile System 18171 | -3/Research | Entered Testing 18232 | -3/Testing | Found Prototype Energy Gun 18233 | -3/Testing | Identified Hyp. EM Gauss Rifle 18275 | -3/Testing | Identified Gui. Remote Datajack 18308 | -3/Testing | Found Prototype Ballistic Gun 18308 | -3/Testing | Identified Hyp. Multirail 18818 | -3/Testing | Discovered new exit (range 11) 18829 | -3/Testing | Fabricated Biometal Heavy Treads (x2) 18974 | -3/Testing | Protovariant out of control (PG-TFA7CGYXRN) 18974 | -3/Testing | Unleashed a protovariant (PG-TFA7CGYXRN) 19001 | -3/Testing | Repaired Quantum Capacitor 19225 | -3/Testing | Found Potential Cannon 19548 | -3/Testing | Entered Research 19548 | -2/Research | Evolved 2 slots: Power x1, Utility x1 19744 | -2/Research | Fabricated B-74 Champion? 19746 | -2/Research | Identified exit to Access 19822 | -2/Research | Identified exit to Quarantine 19903 | -2/Research | Found Adv. Powered Armor 19907 | -2/Research | Found Adv. Powered Armor 19910 | -2/Research | Found Adv. Powered Armor 19914 | -2/Research | Found Adv. Powered Armor 19918 | -2/Research | Found Adv. Powered Armor 19921 | -2/Research | Found Adv. Powered Armor 19923 | -2/Research | Found Adv. Powered Armor 20114 | -2/Research | Spotted B-90 Cyclops 20132 | -2/Research | Entered Quarantine 20214 | -2/Quarantine | Found Alien Artifact 20246 | -2/Quarantine | Repaired Hcp. Storage Unit 20276 | -2/Quarantine | Repaired Hcp. Storage Unit 20334 | -2/Quarantine | Found Transdimensional Reconstructor 20338 | -2/Quarantine | Found Alien Artifact 20341 | -2/Quarantine | Found Alien Artifact 20344 | -2/Quarantine | Found Transdimensional Reconstructor 20344 | -2/Quarantine | Warped through subspace 20500 | -2/Quarantine | Warped through subspace 20501 | -2/Quarantine | Discovered exit to Access (range 16) 20605 | -2/Quarantine | Build established: Botlord-Mutant 20613 | -2/Quarantine | Found Alien Slashing Weapon 20613 | -2/Quarantine | Identified Sigix Broadsword 20867 | -2/Quarantine | Found Alien Artifact 20916 | -2/Quarantine | Spotted Alpha 7 21007 | -2/Quarantine | Found Alien Launcher 21597 | -2/Quarantine | Spotted Fortress 21714 | -2/Quarantine | Discovered new exit (range 5) 21769 | -2/Quarantine | Entered Section 7 21855 | -2/Section 7 | Found Integrated Dissipator 21855 | -2/Section 7 | Installed Integrated Dissipator, increased core heat dissipation (+20) 21900 | -2/Section 7 | Found Prototype Device 21900 | -2/Section 7 | Identified Exp. Shock Absorption System 21946 | -2/Section 7 | Found Alien Artifact 22123 | -2/Section 7 | Spotted B-90 Cyclops 22369 | -2/Section 7 | Garrison activated, responded to threat 22424 | -2/Section 7 | Identified Subatomic Replicator 22430 | -2/Section 7 | Found Alien Artifact 22490 | -2/Section 7 | Identified Hpw. Transdimensional Reconstructor (x2) 22490 | -2/Section 7 | Identified Integrity Redistributor 22490 | -2/Section 7 | Identified Integrated Reactor 22490 | -2/Section 7 | Identified Matter Drive 22503 | -2/Section 7 | Discovered exit to Access (range 21) 22523 | -2/Section 7 | Identified Sigix Terminator 22832 | -2/Section 7 | Spotted Alpha 7 22834 | -2/Section 7 | Spotted Alpha 7 22852 | -2/Section 7 | Warped through subspace 22852 | -2/Section 7 | Spotted Executioner 22852 | -2/Section 7 | Spotted Executioner 22854 | -2/Section 7 | Warped through subspace 23036 | -2/Section 7 | Destroyed Executioner 23046 | -2/Section 7 | Destroyed Executioner 23070 | -2/Section 7 | Found Prototype Processor 23070 | -2/Section 7 | Identified Exp. Targeting Computer 23118 | -2/Section 7 | Found Transdimensional Reconstructor 23134 | -2/Section 7 | Found Alien Artifact 23362 | -2/Section 7 | Build established: Bothacker-Mutant 23408 | -2/Section 7 | Found Alien Energy Gun 23817 | -2/Section 7 | Spotted Striker 23817 | -2/Section 7 | Spotted Striker 23898 | -2/Section 7 | Spotted B-99 Colossus 23955 | -2/Section 7 | Used Subatomic Replicator to replicate Integrated Reactor 23957 | -2/Section 7 | Found Integrated Reactor 23957 | -2/Section 7 | Installed Integrated Reactor, increased core energy generation (+10) 23960 | -2/Section 7 | Installed Integrated Reactor, increased core energy generation (+10) 23963 | -2/Section 7 | Found Integrated Reactor 23963 | -2/Section 7 | Installed Integrated Reactor, increased core energy generation (+10) 23966 | -2/Section 7 | Found Integrated Reactor 23966 | -2/Section 7 | Installed Integrated Reactor, increased core energy generation (+10) 24024 | -2/Section 7 | Found Alien Artifact 24024 | -2/Section 7 | Identified LRC Boosters 24024 | -2/Section 7 | Installed LRC Boosters, increased mass support (+10) 24034 | -2/Section 7 | Found Alien Artifact 24034 | -2/Section 7 | Identified LRC Matter Compressor 24034 | -2/Section 7 | Installed LRC Matter Compressor, increased matter storage capacity (+125) 24328 | -2/Section 7 | System corruption reached 10% 24378 | -2/Section 7 | Installed Integrated Reactor, increased core energy generation (+10) 24541 | -2/Section 7 | Found Matter Drive 24591 | -2/Section 7 | Found Prototype Device 24591 | -2/Section 7 | Identified Adv. Kinecellerator 24754 | -2/Section 7 | Entered Access 24754 | -1/Access | Evolved 2 slots: Utility x1, Weapon x1 24881 | -1/Access | Identified exit to Command 25082 | -1/Access | Build established: Bothacker-Assassin 25153 | -1/Access | Spotted B-99 Colossus 25153 | -1/Access | Spotted B-99 Colossus 25175 | -1/Access | Entered Command 25175 | -1/Command | Accompanied by 1 ally 25318 | -1/Command | Found Antimissile System 25386 | -1/Command | Spotted M Guard 25387 | -1/Command | Spotted M Guard 25387 | -1/Command | Spotted Combat Programmer 25389 | -1/Command | Spotted Combat Programmer 25443 | -1/Command | Destroyed M Guard 25456 | -1/Command | System corruption reached 10% 25457 | -1/Command | Destroyed M Guard 25469 | -1/Command | Combat Programmer assimilated allied Director 10b 25472 | -1/Command | Destroyed Combat Programmer 25475 | -1/Command | Destroyed Combat Programmer 25475 | -1/Command | All MAIN.C guards destroyed 25498 | -1/Command | Lost 4 parts (1p3u) 25507 | -1/Command | Found Zero-point Reactor 25510 | -1/Command | Found Exp. Targeting Computer 25513 | -1/Command | Found Prototype Device 25513 | -1/Command | Identified AEGIS Remote Shield 25516 | -1/Command | Found AEGIS Remote Shield 25522 | -1/Command | Found Prototype Protection 25522 | -1/Command | Identified Hvy. Regenerative Plating 25529 | -1/Command | Found Hellfire Missile Launcher 25536 | -1/Command | Found Zero-point Reactor 25539 | -1/Command | Found Exp. Targeting Computer 25579 | -1/Command | Found Hvy. Regenerative Plating 25596 | -1/Command | Identified Sigix Quantum Sheargun 25754 | -1/Command | Build established: Scavenger-Mutant 25783 | -1/Command | Met MAIN.C 25789 | -1/Command | 0b10 Conduit disabled 25941 | -1/Command | Found Prototype Device 25941 | -1/Command | Identified Exp. Transmission Jammer 26212 | -1/Command | Discovered new exit (range 11) 26516 | -1/Command | Destroyed MAIN.C Shell 26518 | -1/Command | MAIN.C activated Command garrisons 26547 | -1/Command | Destroyed MAIN.C 26753 | -1/Command | Phase Generator disabled 26878 | -1/Command | System corruption reached 30% 30001 | -1/Command | Found AEGIS Remote Shield 30007 | -1/Command | Found Vortex Chain Reactor 30011 | -1/Command | Found Zero-point Reactor 30037 | -1/Command | Warped through subspace to slip node 30037 | -1/Command | Discovered new exit (range 5) 30045 | -1/Command | Entered Access_0 30047 | -1/Access_0 | Met Architect 30061 | -1/Access_0 | Destroyed A8 30068 | -1/Access_0 | Architect warped through subspace 30102 | -1/Access_0 | Architect warped through subspace 30136 | -1/Access_0 | Architect warped through subspace 30181 | -1/Access_0 | Architect warped through subspace 30211 | -1/Access_0 | Architect warped through subspace 30223 | -1/Access_0 | Subspace Access Node disabled 30239 | -1/Access_0 | Architect warped through subspace 30271 | -1/Access_0 | Architect warped through subspace 30309 | -1/Access_0 | Architect warped through subspace 30318 | -1/Access_0 | Subspace Access Node disabled 30344 | -1/Access_0 | Architect warped through subspace 30367 | -1/Access_0 | A6 warped into view 30372 | -1/Access_0 | Architect warped through subspace 30395 | -1/Access_0 | Destroyed A6 30410 | -1/Access_0 | Architect warped through subspace 30427 | -1/Access_0 | Build established: Scavenger-Assassin 30433 | -1/Access_0 | Architect warped through subspace 30449 | -1/Access_0 | Architect warped through subspace 30472 | -1/Access_0 | Architect warped through subspace 30497 | -1/Access_0 | Architect warped through subspace 30506 | -1/Access_0 | Architect warped through subspace 30541 | -1/Access_0 | Architect warped through subspace 30542 | -1/Access_0 | Subspace Access Node disabled 30563 | -1/Access_0 | Architect warped through subspace 30596 | -1/Access_0 | Subspace Access Node disabled 30687 | -1/Access_0 | Found Prototype Device 30687 | -1/Access_0 | Identified Exp. Phase Shifter 30695 | -1/Access_0 | Found Exp. Targeting Computer 30698 | -1/Access_0 | Found Exp. Weapon Cycler 30744 | -1/Access_0 | Found Prototype Device 30744 | -1/Access_0 | Identified Desublimator 30753 | -1/Access_0 | Found Exp. Weapon Cycler 30756 | -1/Access_0 | Found Exp. Phase Shifter 30943 | -1/Access_0 | Build established: Scavenger-Mutant 30968 | -1/Access_0 | Destroyed A2 30977 | -1/Access_0 | Extracted Singularity Gate Test 138-C access codes from A2's data core 31013 | -1/Access_0 | A5 warped into view 31030 | -1/Access_0 | Destroyed A5 31270 | -1/Access_0 | Singularity Gate disabled 31444 | -1/Access_0 | A4 warped into view 31467 | -1/Access_0 | Destroyed A4 31541 | -1/Access_0 | Destroyed Architect 31554 | -1/Access_0 | Found Hpw. Transdimensional Reconstructor 32422 | -1/Access_0 | A3 warped into view 32429 | -1/Access_0 | Destroyed A3 32431 | -1/Access_0 | Warped through subspace to slip node 32431 | -1/Access_0 | Discovered new exit (range 8) 32446 | *** | Establishing 0b11! Last Messages --------------- 32336_ Destroyed Adv. Particle Charger. 32336_ Enhanced Grunt suffers critical hit. 32379_ HV Slug penetrates Enhanced Grunt. 32379_ Enhanced Grunt suffers critical hit. 32379_ HV Slug penetrates Enhanced Grunt. 32379_ HV Slug penetrates Wall. A3 warps into view. 32422_ HV Slug penetrates Wall. 32423_ Stealth Drone retrieved by Stealth Drone Bay. 32425_ Penetrated by HV Slug. 32425_ HV Slug penetrates Wall. 32426_ A3: "You can run but you can't hide, haha." 32427_ Activated siege mode. 32428_ Penetrated by HV Slug. 32428_ HV Slug penetrates Wall. 32429_ A3: "How even..." 32429_ A3 destroyed. 32431_ Warped through subspace, drawn to slip node. 32431_ EXIT=FOUND 32436_ Ended siege mode. Map ----- +----------------------------------------------------+ | | | | | | | | | | | | | | | | | | | | | | | | | | | | | | | | | ?????????????????????????????????????????????????? | | ?????????????????????????????????????????????????? | | ?????????????????????????????????????????????????? | | ?????????????????????????????????????????????????? | | ?????????????????????????????????????????????????? | | ?????????????????????????????????????????????????? | | ????????????????????????###??????????????????????? | | ???????????????????????## ##?????????????????????? | | ???????????????????????# #?????????????????????? | | ???????????????????????# @ #?????????????????????? | | ??????????????????????## #?????????????????????? | | ??????????????????????# #?????????????????????? | | ??????????????????????# ##?????????????????????? | | ??????????????????????## #?????????????????????? | | ??????????????????????# #?????????????????????? | | ??????????????????????# ##?????????????????????? | | ??????????????????????# < #?????????????????????? | | ??????????????????????# ##?????????????????????? | | ??????????????????????## #??????????????????????? | | ???????????????????????####??????????????????????? | | ?????????????????????????????????????????????????? | | ?????????????????????????????????????????????????? | | ?????????????????????????????????????????????????? | | ?????????????????????????????????????????????????? | | ?????????????????????????????????????????????????? | | ?????????????????????????????????????????????????? | | ?????????????????????????????????????????????????? | | ?????????????????????????????????????????????????? | | ?????????????????????????????????????????????????? | | ?????????????????????????????????????????????????? | | ?????????????????????????????????????????????????? | | ?????????????????????????????????????????????????? | | ?????????????????????????????????????????????????? | | ?????????????????????????????????????????????????? | +----------------------------------------------------+ Best States ------------- Heat Dissipation 92 Coolant Potential 65 Energy Generation 111 Energy Capacity 1700 Matter Stores 925 Matter Capacity 925 Sight Range 23 Terrain Scan Range 24 Terrain Scan Density 1010 Jamming Range 22 Armor Coverage 3200 Resistance: KI 30 Resistance: TH 30 Resistance: EX 75 Core Shielding 30 Propulsion Shielding 90 Utility Shielding 66 Weapon Shielding 66 Point Defense Rating 240 Weapon Cycling 30 Phase Shifting 20 Evasion (%) 60 Targeting Accuracy 24 Core Analysis 10 Armor Integrity Analysis 66 Recoil Reduction 4 Matter Filtering 30 Energy Filtering 50 Kinecelleration 50 Offensive Hacking 37 Defensive Hacking 14 Relay Coupler Types 127 Relay Coupler Value 3 Item Schematics ----------------- Arm. Huge Wheel | -9/Storage | Hacked Hrd. Heavy Armor Plating | -8/Materials | Scanalyzed Hvy. Siege Treads | -4/Factory | Hacked Arm. Heavy Treads | -4/Armory | Hacked Exp. Propulsion Shielding | -3/Testing | Scanalyzed Cld. Linear Gravjet | -3/Testing | Hacked Imp. Fusion Compressor | -3/Testing | Scanalyzed Antimissile System | -3/Testing | Scanalyzed Cmb. Linear Gravjet | -2/Quarantine | Hacked Exp. Cloaking Device | -2/Section 7 | Hacked Enh. Armored Heavy Treads | -1/Command | Hacked Enh. Quantum Rifle | -1/Command | Hacked Robot Schematics ------------------ None Fabricated ------------ O-32 Director | x1 | -4/Armory | Preloaded Arm. Heavy Treads | x2 | -4/Armory L-61 Swordsman | x3 | -4/Armory | Preloaded L-61 Swordsman | x3 | -4/Armory | Preloaded Biometal Heavy Treads | x2 | -3/Testing | Preloaded B-74 Champion | x3 | -2/Research | Preloaded Alien Tech Used ----------------- Integrated Dissipator Core Expander Transdimensional Reconstructor Sigix Broadsword Subatomic Replicator High-powered Transdimensional Reconstructor Integrated Reactor LRC Boosters LRC Matter Compressor Sigix Quantum Sheargun Matter Drive Achievements -------------- None Challenges ------------ None Game ------ Seed RecoilBeamDesublimator Manual? 0 Play Time 04:41:24 Cumulative 1636.4 hours Start 2020.10.01 @ 17:57:30 End 2020.10.02 @ 01:09:48 Sessions 3 Manual Loads 0 Difficulty Rogue Special Mode None Game No. 2474 Rogue 2467 Adventurer 0 Explorer 7 Win Type 1 Total 151 Types 41/21/58/3/3/5/18/1/1 Lore% 99 Gallery% 99 Achievement% 100 Wizard Run 0 Options --------- ASCII 0 Keyboard 1 Movement Numpad Keybinds 1 Fullscreen 1 Font 18/SmallcapsGlow Map View 76x50 Tactical HUD 1 Map Filters NONE Filters NONE Steam 1 RUN: ea60ce06-5c0a-4a5d-9be6-b7e82c90571f